Workbook

Sheet INTRO
I1: QUICK CALC v10.01
A3: Copyright © 2020 by Thermaflex International Holding b.v.
A5: Pipe sizing tools of A to B connection for Heating, Geothermal distribution lines and Sanitary applications (closed and open systems).
A6: This Calculation tool includes the dated material properties and specifications of the Flexalen pre-insulated pipe systems:
A7: Flexalen PB
A8: Flexalen 600 / Flexalen 600SL
A9: Flexalen PU / Flexalen PU SL
A12: Requirements
A13: Microsoft Excel 2016 or higher.
A15: Support
A16: If you face issues with this calculation tool, please contact your Thermaflex area contact person.
A18: Disclaimer
A19: This software caclulation tool belongs to Thermaflex. Unautorized sharing or distribution of calculation tool is forbidden!
A20: THERMAFLEX cannot accept any liability for the results or problems with the data or computer.
A21: The compatibility and correct lincence of this Software is the sole responsibility of the user.
A22: Please note that despite careful development and stringent tests we strongly advise to double check all the results.
A23: All is subject to technical modifications; no responsibility is accepted for the accuracy of this information.

Sheet CALC
A1: © 2020 THERMAFLEX / Unautorized sharing or distribution of calculation tool is forbidden! | AB1: LANGUAGE | AC1: PRODUCT
AC2: =IF(PARAMETER_HL!J5="","",PARAMETER_HL!J5) -> 1010-090032-001
B3: =HLOOKUP($K$32,Language!$B:$Y,2,0) -> VÝPOČET POTRUBÍ PRO TRUBNÍ VEDENÍ - SPOJENÍ DVOU BODŮJEDNOTRUBNÍM NEBO DVOUTRUBNÍM VEDENÍM | AB3: ENGLISH | AC3: =IF(PARAMETER_HL!J6="","",PARAMETER_HL!J6) -> 1210-091032-001
B4: =HLOOKUP($K$32,Language!$B:$Y,3,0) -> FLEXALEN - PŘEDIZOLOVANÉ POTRUBNÍ SYSTÉMY | AB4: GERMAN | AC4: =IF(PARAMETER_HL!J7="","",PARAMETER_HL!J7) -> 1000-090032-001
B5: =HLOOKUP($K$32,Language!$B:$Y,4,0) -> VYVINUTO PRO ROZVODY VODY A SYSTÉMY DÁLKOVÉHO TOPENÍ | AB5: BULAGRIAN | AC5: =IF(PARAMETER_HL!J8="","",PARAMETER_HL!J8) -> 
AB6: DUTCH | AC6: =IF(PARAMETER_HL!J9="","",PARAMETER_HL!J9) -> 
AB7: FRENCH | AC7: =IF(PARAMETER_HL!J10="","",PARAMETER_HL!J10) -> 
B8: =HLOOKUP($K$32,Language!$A:$Y,51,0) -> PROSÍM VYPLŇTE UŽITÍ: | C8: =HLOOKUP($K$32,Language!$A:$Y,52,0) -> TEPLÁ VODA → | G8: =HLOOKUP($K$32,Language!$A:$Y,22,0) -> POUŽITELNÝ TEPELNÝ SPÁD | I8: =IFERROR(IF(G29="E",HLOOKUP($K$32,Language!$A:$Y,36,0),K16-K18),HLOOKUP($K$32,Language!$A:$Y,78,0)) -> Choose product | AB8: ROMANIAN | AC8: =IF(PARAMETER_HL!J11="","",PARAMETER_HL!J11) -> 
C9: =HLOOKUP($K$32,Language!$A:$Y,53,0) -> TOPENÍ/CHLAZENÍ → | G9: =HLOOKUP($K$32,Language!$A:$Y,23,0) -> POUŽITELNÉ ZATÍŽENÍ | I9: =IFERROR(IF(G29="E",HLOOKUP($K$32,Language!$A:$Y,36,0),TEMPERATUR!C28),HLOOKUP($K$32,Language!$A:$Y,78,0)) -> Choose product | AB9: TURKISH | AC9: =IF(PARAMETER_HL!J12="","",PARAMETER_HL!J12) -> 
G10: =HLOOKUP($K$32,Language!$A:$Y,24,0) -> OBSAH SÍTĚ | I10: =TEMPERATUR!G12 -> 0 | AB10: RUSSIAN | AC10: =IF(PARAMETER_HL!J13="","",PARAMETER_HL!J13) -> 
B11: =IF($G$29="D",HLOOKUP($K$32,Language!$A:$Y,60,0),HLOOKUP($K$32,Language!$A:$Y,55,0)) -> TEPLOTA NA PŘÍVOD. VĚTVI | C11: (Tf) | E11: =IF($G$29="D",HLOOKUP($K$32,Language!A:Y,71,FALSE),HLOOKUP($K$32,Language!A:Y,66,FALSE)) -> °C | AB11: Czech | AC11: =IF(PARAMETER_HL!J14="","",PARAMETER_HL!J14) -> 
B12: =IF($G$29="D",HLOOKUP($K$32,Language!$A:$Y,61,0),"") -> TEPLOTA NA VRATNÉ VĚTVI | C12: =IF(G29="E","","(Tr)") -> (Tr) | E12: =IF($G$29="D",HLOOKUP($K$32,Language!A:Y,72,FALSE),"") -> °C | G12: =HLOOKUP($K$32,Language!$A:$Y,25,0) -> ZDROJ | H12: =PARAMETER_R!C31 -> 0 | I12: =HLOOKUP($K$32,Language!$A:$Y,29,0) -> TLAK PŘÍDAVNÉHO ČERPADLA | AB12: ITALIAN | AC12: =IF(PARAMETER_HL!J15="","",PARAMETER_HL!J15) -> 
B13: =HLOOKUP($K$32,Language!A:Y,10,0) -> TEPLOTNÍ SPÁD (Tp-Tv) | D13: =IF(G29="E",HLOOKUP($K$32,Language!$A:$Y,36,0),D11-D12) -> 0 | E13: K | G13: =HLOOKUP($K$32,Language!$A:$Y,26,0) -> TEPLOTNÍ SPÁD | I13: =HLOOKUP($K$32,Language!$A:$Y,30,0) -> Teplota° C | J13: =HLOOKUP($K$32,Language!$A:$Y,31,0) -> Tlaková ztráta bar | K13: =HLOOKUP($K$32,Language!$A:$Y,32,0) -> Dimenze (DA) | L13: =HLOOKUP($K$32,Language!$A:$Y,33,0) -> KONEČNÝ BOD | AB13: HUNGARIAN | AC13: =IF(PARAMETER_HL!J16="","",PARAMETER_HL!J16) -> 
B14: =HLOOKUP($K$32,Language!$A:$Y,62,0) -> DÉLKA TRASY | E14: =HLOOKUP($K$32,Language!A:Y,73,FALSE) -> m | G14: =IF(G29="E",HLOOKUP($K$32,Language!$A:$Y,27,0),D13) -> 0 | AB14: CROATIAN | AC14: =IF(PARAMETER_HL!J17="","",PARAMETER_HL!J17) -> 
B15: =IF($G$29="D",HLOOKUP($K$32,Language!$A:$Y,63,0),HLOOKUP($K$32,Language!$A:$Y,57,0)) -> PŘENESENÝ VÝKON | E15: =IF(G29="D",HLOOKUP($K$32,Language!A:Y,74,FALSE),HLOOKUP($K$32,Language!A:Y,68,FALSE)) -> kW | H15: =HLOOKUP($K$32,Language!$A:$Y,34,0) -> PŘÍVODNÍ VĚTEV | I15: =D11 -> 0 | J15: =D26/100000 -> 0 | K15: =D24 -> 25 | AB15: POLISH | AC15: =IF(PARAMETER_HL!J18="","",PARAMETER_HL!J18) -> 
B16: =IF($G$29="D",HLOOKUP($K$32,Language!$A:$Y,64,0),HLOOKUP($K$32,Language!$A:$Y,58,0)) -> PŘÍDAVNÝ TLAK ČERPADLA | E16: =IF($G$29="D",HLOOKUP($K$32,Language!A:Y,69,FALSE),HLOOKUP($K$32,Language!A:Y,75,FALSE)) -> bar | G16: =HLOOKUP($K$32,Language!$A:$Y,28,0) -> ČERPADLO | H16: =D11 -> 0 | K16: =IFERROR(D11-TEMPERATUR!C23,HLOOKUP($K$32,Language!$A:$Y,78,0)) -> Choose product | AB16: Danish | AC16: =IF(PARAMETER_HL!J19="","",PARAMETER_HL!J19) -> 
G17: =IF(G29="E",J15,J15+J17)+H12 -> 0 | H17: =HLOOKUP($K$32,Language!$A:$Y,35,0) -> VRATNÁ VĚTEV | I17: =IF(G29="E","------",D12) -> 0 | J17: =IFERROR(D27/100000,0) -> 0 | K17: =IF(G29="E","------",D24) -> 25 | AB17: Norweigian | AC17: =IF(PARAMETER_HL!J20="","",PARAMETER_HL!J20) -> 
B18: =HLOOKUP($K$32,Language!A:Y,7,0) -> PŘIZPŮSOBENÍ DIMENZE | D18: 1 | E18: x | G18: =D21 * 3.6 -> 0 | H18: =IF(G29="E",HLOOKUP($K$32,Language!$A:$Y,36,0),D12) -> 0 | K18: =IFERROR(IF(G29="E",HLOOKUP($K$32,Language!$A:$Y,36,0),H18+TEMPERATUR!D23),HLOOKUP($K$32,Language!$A:$Y,78,0)) -> Choose product | AB18: Swedish | AC18: =IF(PARAMETER_HL!J21="","",PARAMETER_HL!J21) -> 
I19: =PARAMETER_R!C28 -> 0 | AC19: =IF(PARAMETER_HL!J22="","",PARAMETER_HL!J22) -> 
B20: =HLOOKUP($K$32,Language!A:Y,12,0) -> VÝKON ZDROJE (kW) | D20: =PARAMETER_R!C29 -> 0 | E20: kW | AC20: =IF(PARAMETER_HL!J23="","",PARAMETER_HL!J23) -> 
B21: =HLOOKUP($K$32,Language!A:Y,13,0) -> OBJEMOVÝ PRŮTOK | D21: =IF(G29<>"E",IF(D20=0,PARAMETER_R!C30,(D20*1000/(D13* 4196))),IF(PARAMETER_R!C30=0,0.00000000001,PARAMETER_R!C30)) -> 0 | E21: l/s | G21: =HLOOKUP($K$32,Language!$A:$Y,37,0) -> Teplota zeminy | H21: 10 | J21: =HLOOKUP($K$32,Language!$A:$Y,40,0) -> Teplotní ztráta - přívod. | L21: =IFERROR(H16-K16,HLOOKUP($K$32,Language!$A:$Y,78,0)) -> Choose product | AC21: =IF(PARAMETER_HL!J24="","",PARAMETER_HL!J24) -> 
B22: =HLOOKUP($K$32,Language!A:Y,14,0) -> CELKOVÁ DÉLKA POTRUBÍ | D22: =IF(G29="E",PARAMETER_R!C28,PARAMETER_R!C28*2) -> 0 | E22: m | G22: =HLOOKUP($K$32,Language!$A:$Y,38,0) -> Výška krytí | H22: 800 | J22: =HLOOKUP($K$32,Language!$A:$Y,41,0) -> Délka trasy | L22: =PARAMETER_R!C28 -> 0
G23: =HLOOKUP($K$32,Language!$A:$Y,39,0) -> Lambda zeminy | H23: 1 | J23: =HLOOKUP($K$32,Language!$A:$Y,42,0) -> Prodleva - přívodní větev | L23: =IFERROR(TEMPERATUR!C13,0) -> 0
B24: =HLOOKUP($K$32,Language!$A:$Y,15,0) -> DA (DIMENZE) | D24: =IF(D21*D18<PARAMETER_R!$J$7, PARAMETER_R!$A$7, LOOKUP(D21*D18,PARAMETER_R!$J$7:$J$21,PARAMETER_R!$A$7:$A$21)) -> 25
B25: =HLOOKUP($K$32,Language!$A:$Y,16,0) -> RYCHLOST PROUDĚNÍ | C25: =IF(D25>5,"v<5m/s","") ->  | D25: =D21/((LOOKUP(D24,PARAMETER_R!$A$7:$A$21,PARAMETER_R!$B$7:$B$21)/2)^2*PI()*0.001) -> 0 | G25: =HLOOKUP($K$32,Language!$A:$Y,43,0) -> Tlaková řada | H25: =IF(D24>110,6,8) -> 8 | I25: =HLOOKUP($K$32,Language!$A:$Y,47,0) -> při 95°C
B26: =HLOOKUP($K$32,Language!$A:$Y,17,0) -> TLAK. ZTRÁTA NA PŘÍV. VĚTVI | D26: =PARAMETER_R!C28*D25^PARAMETER_R!$B$1*LOOKUP(D24,PARAMETER_R!$A$7:$A$21,PARAMETER_R!$C$7:$C$21)*(PARAMETER_R!$B$2^((90-$D$11)/10)) -> 0 | G26: =HLOOKUP($K$32,Language!$A:$Y,44,0) -> Maximální tlak | H26: =PARAMETER_R!G24 -> 16.38844986 | I26: =HLOOKUP($K$32,Language!$A:$Y,48,0) -> při provozní teplotě
B27: =HLOOKUP($K$32,Language!$A:$Y,18,0) -> TLAK. ZTRÁTA NA VRAT.VĚTVI | D27: =IF(G29="E","------",PARAMETER_R!C28*D25^PARAMETER_R!$B$1*LOOKUP(D24,PARAMETER_R!$A$7:$A$21,PARAMETER_R!$C$7:$C$21)*(PARAMETER_R!$B$2^((90-D12)/10))) -> 0 | G27: =HLOOKUP($K$32,Language!$A:$Y,45,0) -> Tlaková ztráta | H27: =J15+J17 -> 0 | I27: =HLOOKUP($K$32,Language!$A:$Y,49,0) -> Pouze pro potr.FLEXALEN
B28: =HLOOKUP($K$32,Language!$A:$Y,19,0) -> TLAKOVÁ ZTRÁTA CELKEM | D28: =IF(G29="E",D26,D26+D27) -> 0 | G28: =HLOOKUP($K$32,Language!$A:$Y,46,0) -> Tlaková rezerva | H28: =H26-((D28/100000)+H12) -> 16.38844986 | I28: =HLOOKUP($K$32,Language!$A:$Y,50,0) -> při provozní teplotě
G29: D
B30: =HLOOKUP($K$32,Language!$A:$Y,76,0) -> SELECT A FLEXALEN PRODUCT | H30: =IF(G29="E",HLOOKUP($K$32,Language!B:Y,20,0),HLOOKUP($K$32,Language!B:Y,21,0)) -> TOPENÍ/CHLAZENÍ(P/V)
D31: =VLOOKUP(D30,Product_description!A:G,7,0) -> /
B32: =HLOOKUP($K$32,Language!$A:$Y,77,0) -> HEAT LOSS PER m' TRENCH LENGTH | D32: =IFERROR(TEMPERATUR!C14+TEMPERATUR!D14,HLOOKUP($K$32,Language!$A:$Y,78,0)) -> Choose product | E32: W/m | J32: LANGUAGE: | K32: Czech
B33: =HLOOKUP($K$32,Language!$A:$Y,79,0) -> HEAT LOSS TOTAL | D33: =IFERROR(D32*D14/1000,HLOOKUP($K$32,Language!$A:$Y,78,0)) -> Choose product | E33: kW

Sheet PRINTOUT
B2: =CALC!B3 -> VÝPOČET POTRUBÍ PRO TRUBNÍ VEDENÍ - SPOJENÍ DVOU BODŮJEDNOTRUBNÍM NEBO DVOUTRUBNÍM VEDENÍM
B3: =CALC!B4 -> FLEXALEN - PŘEDIZOLOVANÉ POTRUBNÍ SYSTÉMY
B4: =CALC!B5 -> VYVINUTO PRO ROZVODY VODY A SYSTÉMY DÁLKOVÉHO TOPENÍ
I7: =CALC!B24 -> DA (DIMENZE) | K7: =CALC!D24 -> 25
I8: =CALC!B25 -> RYCHLOST PROUDĚNÍ | K8: =CALC!D25 -> 0
B9: FLEXALEN | D9: =CALC!H30 -> TOPENÍ/CHLAZENÍ(P/V) | I9: =CALC!B21 -> OBJEMOVÝ PRŮTOK | K9: =CALC!D21 -> 0
I10: =CALC!B20 -> VÝKON ZDROJE (kW) | K10: =CALC!D20 -> 0
I11: =CALC!B13 -> TEPLOTNÍ SPÁD (Tp-Tv) | K11: =CALC!D13 -> 0
I12: =CALC!G8 -> POUŽITELNÝ TEPELNÝ SPÁD | K12: =CALC!I8 -> Choose product
B13: =CALC!G12 -> ZDROJ | C13: =CALC!H12 -> 0 | D13: =CALC!I12 -> TLAK PŘÍDAVNÉHO ČERPADLA | I13: =CALC!G9 -> POUŽITELNÉ ZATÍŽENÍ | K13: =CALC!I9 -> Choose product
B14: DELTA T | D14: =CALC!I13 -> Teplota° C | E14: =CALC!J13 -> Tlaková ztráta bar | F14: =CALC!K13 -> Dimenze (DA) | G14: =CALC!L13 -> KONEČNÝ BOD | I14: =CALC!B26 -> TLAK. ZTRÁTA NA PŘÍV. VĚTVI | K14: =CALC!D26 -> 0
B15: =CALC!G14 -> 0 | I15: =CALC!B27 -> TLAK. ZTRÁTA NA VRAT.VĚTVI | K15: =CALC!D27 -> 0
C16: =CALC!H15 -> PŘÍVODNÍ VĚTEV | D16: =CALC!I15 -> 0 | E16: =CALC!J15 -> 0 | F16: =CALC!K15 -> 25 | I16: =CALC!B28 -> TLAKOVÁ ZTRÁTA CELKEM | K16: =CALC!D28 -> 0
B17: =CALC!G16 -> ČERPADLO | C17: =CALC!H16 -> 0 | F17: =CALC!K16 -> Choose product
B18: =CALC!G17 -> 0 | C18: =CALC!H17 -> VRATNÁ VĚTEV | D18: =CALC!I17 -> 0 | E18: =CALC!J17 -> 0 | F18: =CALC!K17 -> 25 | I18: =CALC!G25 -> Tlaková řada | J18: =CALC!I25 -> při 95°C | K18: =CALC!H25 -> 8
B19: =CALC!G18 -> 0 | C19: =CALC!H18 -> 0 | F19: =CALC!K18 -> Choose product | I19: =CALC!G26 -> Maximální tlak | J19: =CALC!I26 -> při provozní teplotě | K19: =CALC!H26 -> 16.38844986
D20: =CALC!I19 -> 0 | I20: =CALC!G27 -> Tlaková ztráta | J20: =CALC!I27 -> Pouze pro potr.FLEXALEN | K20: =CALC!H27 -> 0
I21: =CALC!G28 -> Tlaková rezerva | J21: =CALC!I28 -> při provozní teplotě | K21: =CALC!H28 -> 16.38844986
I23: =CALC!G21 -> Teplota zeminy | K23: =CALC!H21 -> 10
I24: =CALC!G22 -> Výška krytí | K24: =CALC!H22 -> 800
I25: =CALC!G23 -> Lambda zeminy | K25: =CALC!H23 -> 1
I26: =CALC!J21 -> Teplotní ztráta - přívod. | K26: =CALC!L21 -> Choose product
I27: =CALC!J22 -> Délka trasy | K27: =CALC!L22 -> 0
I28: =CALC!J23 -> Prodleva - přívodní větev | K28: =CALC!L23 -> 0
I29: =CALC!G10 -> OBSAH SÍTĚ | K29: =CALC!I10 -> 0
I31: =HLOOKUP(CALC!$K$32,Language!$A:$Y,80,0) -> FLEXALEN Product | K31: =CALC!D30 -> 0
I32: Product description | K32: =VLOOKUP(K31,Product_description!A:G,7,0) -> /
I33: =HLOOKUP(CALC!$K$32,Language!$A:$Y,81,0) -> Quantity | K33: =IF(OR(CALC!$G$29="e",AND(CALC!$G$29="d",VLOOKUP(K31,PARAMETER_HL!E:Z,22,0)="d")),CALC!D14,2*CALC!D14) -> 

Sheet INFO
A1: INFORMATION
A3: SIZE TUNING | B3: Change the calculated pipe size
A5: With the “Size tuning” factor you are able changing the diameter calculated by the software by simulating higher or lower heat loads or volumetric flows.
A7: Size tuning – factor
A8: <1 | B8: Pipe diameter will decrease
A9: 1 | B9: Standard setting
A10: >1 | B10: Pipe diameter increase
A13: PIPE SIZING | B13: Recommendations for pipe sizing
A14: Below you find the recommended velocities recommended for FLEXALEN PB-H SDR11 service pipes in District / Local heating applications.
A15: At house entries we don't recommend higher velocities then 2.5 m/s due to creation of disturbing noise (depending on the situation).
A17: O.D. | B17: I.D. | C17: v min | D17: v max
A18: [mm] | B18: [mm] | C18: [m/s] | D18: [m/s]
A19: 25 | B19: 20.4 | C19: 0.32 | D19: 1.21
A20: 32 | B20: 26 | C20: 0.37 | D20: 1.32
A21: 40 | B21: 32.6 | C21: 0.45 | D21: 1.43
A22: 50 | B22: 40.8 | C22: 0.5 | D22: 1.54
A23: 63 | B23: 51.4 | C23: 0.6 | D23: 1.76
A24: 75 | B24: 61.2 | C24: 0.65 | D24: 1.98
A25: 90 | B25: 73.6 | C25: 0.75 | D25: 2.2
A26: 110 | B26: 90 | C26: 0.85 | D26: 2.53
A27: 125 | B27: 102.2 | C27: 0.9 | D27: 2.75
A28: 140 | B28: 114.4 | C28: 1 | D28: 2.86
A29: 160 | B29: 130.8 | C29: 1.1 | D29: 3.19
A30: 225 | B30: 184 | C30: 1.4 | D30: 3.96
A31: 315 | B31: 257.8 | C31: 1.6 | D31: 5
A33: HEAT LOSS / TEMPERATURE DROP
A34: Please find below the used parameter for the calculation of U-values and Heat losses.
A36: Thermal conductivity soil | D36: = 1 W/mK
A37: Pre-insulated pipe coverage | D37: = 0.8 m
A38: Soil temperature | D38: = 10°C
A39: Thermal resistance factor soil | D39: = 0.0685 m2.K/W

Sheet HEATLOSS (hidden)
A9: =CALC!D30 -> 0 | B9: =PARAMETER_R!C28 -> 0 | C9: =CALC!#REF! ->  | D9: =B9*C9 -> 
A10: Product | B10: Trench length [m] | C10: Heat loss [W/m] | D10: Heat loss total [W]

Sheet PARAMETER_R (hidden)
A1: QF | B1: 1.83 | C1: Materialkonstante für Rohrreibung | G1: KS-Druckkonstante A | I1: 1.008 | J1: Multiplikator P-D | L1: 0.75
A2: TF | B2: 1.02 | C2: Temperaturkonstante für dyn. Viskosität | G2: KS Druckkonstante B | I2: 0.0001 | J2: Begrenzung ab D | L2: 125
A3: Mediumdichte | B3: 0.98 | C3: Mediumdichte des Rohrinhaltes | G3: Bodentemperatur °C | I3: 10 | J3: max Druck bar Begrenzung | L3: 10
A4: DRUCKVERLUSTE UND GRENZWERTE LAUT DATENBLATT | G4: Kunststoff | J4: DIMENSIONSFAKTOR
A5: DRUCKVERLUSTTABELLE | B5: DI 1mm | C5: 21325 | D5: PaT90/m | E5: RN= | F5: =4^(1/7) -> 1.219013654 | G5: Pmax= | H5: 8 | J5: 1 | K5: ENTSPRICHT
A6: TYP | B6: DI | C6: PaT90/m | D6: l/sec max | E6: l/sec opt | F6: L/sec min | G6: v/min | H6: V/max | I6: V/optimal | J6: AUSWAHL | K6: Vmax
A7: 25 | B7: 20.4 | C7: 540.0475296 | D7: 0.395289576 | E7: 0.2587349952 | F7: 0.104539392 | G7: 0.32 | H7: 1.21 | I7: 0.792 | J7: 0.22661694 | K7: 1.21
A8: 25 | B8: 20.4 | C8: 540.0475296 | D8: 0.395289576 | E8: 0.2587349952 | F8: 0.104539392 | G8: 0.32 | H8: 1.21 | I8: 0.792 | J8: 0.22661694 | K8: 1.21
A9: 25 | B9: 20.4 | C9: =$C$5/(B9^$F$5) -> 540.0475296 | D9: =((B9/2)^2*3.14*H9)/1000 -> 0.395289576 | E9: =((B9/2)^2*3.14*I9)/1000 -> 0.2587349952 | F9: =((B9/2)^2*3.14*G9)/1000 -> 0.104539392 | G9: 0.32 | H9: 1.21 | I9: 0.792 | J9: 0.22661694 | K9: =(J10*1000)/((B9/2)^2*3.14) -> 1.21
A10: 32 | B10: 26 | C10: 401.8067316 | D10: 0.7004712 | E10: 0.45822491 | F10: 0.1963442 | G10: 0.37 | H10: 1.32 | I10: 0.8635 | J10: 0.395289576 | K10: 1.32
A11: 40 | B11: 32.6 | C11: 304.9693005 | D11: 1.193001238 | E11: 0.8029816025 | F11: 0.37541997 | G11: 0.45 | H11: 1.43 | I11: 0.9625 | J11: 0.7004712 | K11: 1.43 | M11: ARBEITSBEREICH enspricht rotem Bereich!!
A12: 50 | B12: 40.8 | C12: 231.991626 | D12: 2.012383296 | E12: 1.365545808 | F12: 0.6533712 | G12: 0.5 | H12: 1.54 | I12: 1.045 | J12: 1.193001238 | K12: 1.54
A13: 63 | B13: 51.5 | C13: 174.6516345 | D13: 3.6643486 | E13: 2.519239663 | F13: 1.24920975 | G13: 0.6 | H13: 1.76 | I13: 1.21 | J13: 2.012383296 | K13: 1.76
A14: 75 | B14: 61.2 | C14: 141.5189702 | D14: 5.821537392 | E14: 3.961879614 | F14: 1.91111076 | G14: 0.65 | H14: 1.98 | I14: 1.3475 | J14: 3.6643486 | K14: 1.98
A15: 90 | B15: 73.6 | C15: 113.0158858 | D15: 9.35508992 | E15: 6.43162432 | F15: 3.1892352 | G15: 0.75 | H15: 2.2 | I15: 1.5125 | J15: 5.821537392 | K15: 2.2
A16: 110 | B16: 90 | C16: 88.43837156 | D16: 16.087005 | E16: 11.01610125 | F16: 5.404725 | G16: 0.85 | H16: 2.53 | I16: 1.7325 | J16: 9.35508992 | K16: 2.53
A17: 125 | B17: 102.2 | C17: 75.74273105 | D17: 22.54779835 | E17: 15.33250288 | F17: 7.37927946 | G17: 0.9 | H17: 2.75 | I17: 1.87 | J17: 16.087005 | K17: 2.75
A18: 140 | B18: 114.6 | C18: 65.87412725 | D18: 29.48525752 | E18: 20.41287059 | F18: 10.3095306 | G18: 1 | H18: 2.86 | I18: 1.98 | J18: 22.54779835 | K18: 2.86
A19: 160 | B19: 130.8 | C19: 56.06803029 | D19: 42.84260086 | E19: 29.54662128 | F19: 14.77331064 | G19: 1.1 | H19: 3.19 | I19: 2.2 | J19: 29.48525752 | K19: 3.19
A20: 225 | B20: 184 | C20: 36.98666632 | D20: 105.2447616 | E20: 73.08664 | F20: 37.207744 | G20: 1.4 | H20: 3.96 | I20: 2.75 | J20: 42.84260086 | K20: =K19*(H20/H19) -> 3.96
A21: 315 | B21: =A21-(2*28.6) -> 257.8 | C21: 24.51897127 | D21: 260.858797 | E21: 154.9501254 | F21: 83.47481504 | G21: 1.6 | H21: 5 | I21: 2.97 | J21: 105.2447616
C24: =CALC!G29 -> D | E24: Pmax calc = | G24: =IF(CALC!D24<L2,IF(I1=0,H5,(I1+(C25*I2))^(90-C25)*H5),G25) -> 16.38844986 | H24: bar
A25: TEMPERATUR VORLAUF | C25: =IF($C$24="E",CALC!D11,CALC!D11) -> 0 | E25: Pmax calc limit= | G25: =IF(((I1+(C25*I2))^(90-C25)*H5)*L1<L3,((I1+(C25*I2))^(90-C25)*H5)*L1,L3) -> 10 | H25: bar
A26: TEMPERATUR RÜCKLAUF | C26: =IF($C$24="E",0,CALC!D12) -> 0
A27: SPREIZUNG | C27: =IF($C$24="E",0,CALC!D13) -> 0
A28: TRASSENLÄNGE | C28: =CALC!D14 -> 0
A29: LEISTUNG kW | C29: =IF($C$24="E",0,CALC!D15) -> 0
A30: MEDIUMMENGE | C30: =IF($C$24="E",CALC!D15,0) -> 0
A31: VORDRUCK für Pumpe | C31: =CALC!D16 -> 0

Sheet TEMPERATUR (hidden)
A2: CALCULATION TEMPERATURE DROP:
B4: Supply line / Heating, Cooling | C4: =CALC!G29 -> D | D4: (E or D)
B5: Product choosen | C5: =CALC!D30 -> 0
C7: PIPE | D7: PIPE
C8: FLOW | D8: RETURN
A9: O.D. | B9: Diameter pipe | C9: =CALC!$K$15 -> 25 | D9: =CALC!$K$17 -> 25 | E9: mm
A10: ϑ | B10: Temperature medium | C10: =CALC!$D$11 -> 0 | D10: =CALC!$D$12 -> 0 | E10: °C
A11: mm | B11: mass (medium) / m | C11: =((LOOKUP(C9,PARAMETER_R!$A$7:$A$20,PARAMETER_R!$B$7:$B$20)/2)^2*PI()*0.001) -> 0.3268512997 | D11: =((LOOKUP(D9,PARAMETER_R!$A$7:$A$20,PARAMETER_R!$B$7:$B$20)/2)^2*PI()*0.001) -> 0.3268512997 | E11: kg | F11: water: 1l = 1kg
A12: mtot | B12: mass total | C12: =C11*PARAMETER_R!C28 -> 0 | D12: =D11*PARAMETER_R!C28 -> 0 | E12: kg | F12: Total volume: | G12: =IF(ISERROR(D12),C12,C12+D12) -> 0 | H12: l
A13: t | B13: dwell time | C13: =PARAMETER_R!C28/CALC!$D$25 ->  | D13: =PARAMETER_R!C28/CALC!$D$25 ->  | E13: s
A14: Pm | B14: Power loss (Heat loss) / m | C14: =IF(C4="E",VLOOKUP($C$4&$C$5,PARAMETER_HL!$F$3:$I$88,4,0),VLOOKUP($C$4&$C$5,PARAMETER_HL!$F$3:$I$88,4,0)*0.5) ->  | D14: =IF(C4="E","0",VLOOKUP($C$4&$C$5,PARAMETER_HL!$F$3:$I$88,4,0)*0.5) ->  | E14: W
A15: Ptot | B15: Heat loss total | C15: =C14*PARAMETER_R!C28 ->  | D15: =D14*PARAMETER_R!C28 ->  | E15: W
A17: c | B17: specific heat capacity (water) | C17: 4190 | D17: 4190 | E17: J / kg.K
A19: E1 | B19: Engergy content | C19: =C11*C17*C10 -> 0 | D19: =D11*D17*D10 -> 0 | E19: J
A20: E2 | B20: Engergy loss due heat loss | C20: =C14*C13 ->  | D20: =D14*D13 ->  | E20: J
A22: ϑ | B22: Temperature medium | C22: =(C19-C20)/(C11*C17) ->  | D22: =(D19-D20)/(D11*D17) ->  | E22: °C
A23: ΔT | B23: Temperature drop | C23: =C10-C22 ->  | D23: =D10-D22 ->  | E23: K
A26: Temperature difference: | C26: =CALC!$I$8 -> Choose product | D26: K
A27: Volumetric flow: | C27: =CALC!$D$21 -> 0 | D27: l/s
A28: Usable load | C28: =(C26*C27*C17)/1000 ->  | D28: kW

Sheet PARAMETER_HL (hidden)
A1: =CALC!D24 -> 25 | B1: =CALC!G29 -> D | J1: O.D. [mm] | K1: 32
I2: f=ϑ.x+d | J2: Type | K2: E
A3: O.D. [mm] | B3: TF Range | C3: Type | D3: 2 | E3: TF code | F3: help | G3: U | H3: d | I3: [W/m]
A4: 25 | B4: F600 | C4: E | E4: 1010-090025-001 | F4: =C4&E4 -> E1010-090025-001 | G4: 0.148 | I4: =G4*(CALC!$D$11-CALC!$H$21) -> -1.48 | J4: Zeilenbeschriftungen | Z4: =D4 -> 0
A5: 32 | B5: F600 | C5: E | E5: 1010-090032-001 | F5: E1010-090032-001 | G5: 0.182 | I5: =G5*(CALC!$D$11-CALC!$H$21) -> -1.82 | J5: 1010-090032-001 | Z5: =D5 -> 0
A6: 40 | B6: F600 | C6: E | E6: 1010-090040-001 | F6: E1010-090040-001 | G6: 0.23 | I6: =G6*(CALC!$D$11-CALC!$H$21) -> -2.3 | J6: 1210-091032-001 | Z6: 0
A7: 50 | B7: F600 | C7: E | E7: 1010-125050-001 | F7: E1010-125050-001 | G7: 0.219 | I7: =G7*(CALC!$D$11-CALC!$H$21) -> -2.19 | J7: 1000-090032-001 | Z7: 0
A8: 63 | B8: F600 | C8: E | E8: 1010-125063-001 | F8: E1010-125063-001 | G8: 0.29 | I8: =G8*(CALC!$D$11-CALC!$H$21) -> -2.9 | Z8: 0
A9: 75 | B9: F600 | C9: E | E9: 1010-160075-001 | F9: E1010-160075-001 | G9: 0.265 | I9: =G9*(CALC!$D$11-CALC!$H$21) -> -2.65 | Z9: 0
A10: 90 | B10: F600 | C10: E | E10: 1010-160090-001 | F10: E1010-160090-001 | G10: 0.336 | I10: =G10*(CALC!$D$11-CALC!$H$21) -> -3.36 | Z10: 0
A11: 110 | B11: F600 | C11: E | E11: 1000-200110-001 | F11: E1000-200110-001 | G11: 0.354 | I11: =G11*(CALC!$D$11-CALC!$H$21) -> -3.54 | Z11: 0
A12: 125 | B12: F600 | C12: E | E12: 1000-200125-001 | F12: E1000-200125-001 | G12: 0.43 | I12: =G12*(CALC!$D$11-CALC!$H$21) -> -4.3 | Z12: 0
A13: 40 | B13: F600 | C13: E | E13: 1010-125040-001 | F13: E1010-125040-001 | G13: 0.178 | I13: =G13*(CALC!$D$11-CALC!$H$21) -> -1.78 | Z13: 0
A14: 50 | B14: F600 | C14: E | E14: 1010-160050-001 | F14: E1010-160050-001 | G14: 0.182 | I14: =G14*(CALC!$D$11-CALC!$H$21) -> -1.82 | Z14: 0
A15: 63 | B15: F600 | C15: E | E15: 1010-160063-001 | F15: E1010-160063-001 | G15: 0.222 | I15: =G15*(CALC!$D$11-CALC!$H$21) -> -2.22 | Z15: 0
A16: 25 | B16: FPU | C16: E | E16: 1210-091025-001 | F16: E1210-091025-001 | G16: 0.102 | I16: =G16*(CALC!$D$11-CALC!$H$21) -> -1.02 | Z16: 0
A17: 32 | B17: FPU | C17: E | E17: 1210-091032-001 | F17: E1210-091032-001 | G17: 0.126 | I17: =G17*(CALC!$D$11-CALC!$H$21) -> -1.26 | Z17: 0
A18: 40 | B18: FPU | C18: E | E18: 1210-111040-001 | F18: E1210-111040-001 | G18: 0.128 | I18: =G18*(CALC!$D$11-CALC!$H$21) -> -1.28 | Z18: 0
A19: 50 | B19: FPU | C19: E | E19: 1210-126050-001 | F19: E1210-126050-001 | G19: 0.14 | I19: =G19*(CALC!$D$11-CALC!$H$21) -> -1.4 | Z19: 0
A20: 63 | B20: FPU | C20: E | E20: 1210-142063-001 | F20: E1210-142063-001 | G20: 0.159 | I20: =G20*(CALC!$D$11-CALC!$H$21) -> -1.59 | Z20: 0
A21: 75 | B21: FPU | C21: E | E21: 1210-162075-001 | F21: E1210-162075-001 | G21: 0.166 | I21: =G21*(CALC!$D$11-CALC!$H$21) -> -1.66 | Z21: 0
A22: 90 | B22: FPU | C22: E | E22: 1210-182090-001 | F22: E1210-182090-001 | G22: 0.18 | I22: =G22*(CALC!$D$11-CALC!$H$21) -> -1.8 | Z22: 0
A23: 110 | B23: FPUSL | C23: E | E23: 1920-200110-030 | F23: E1920-200110-030 | G23: 0.237 | I23: =G23*(CALC!$D$11-CALC!$H$21) -> -2.37 | Z23: 0
A24: 125 | B24: FPUSL | C24: E | E24: 1920-200125-030 | F24: E1920-200125-030 | G24: 0.292 | I24: =G24*(CALC!$D$11-CALC!$H$21) -> -2.92 | Z24: 0
A25: 140 | B25: FPUSL | C25: E | E25: 1920-225140-030 | F25: E1920-225140-030 | G25: 0.29 | I25: =G25*(CALC!$D$11-CALC!$H$21) -> -2.9 | Z25: 0
A26: 160 | B26: FPUSL | C26: E | E26: 1920-250160-030 | F26: E1920-250160-030 | G26: 0.306 | I26: =G26*(CALC!$D$11-CALC!$H$21) -> -3.06 | Z26: 0
A27: 225 | B27: FPUSL | C27: E | E27: 1920-315225-030 | F27: E1920-315225-030 | G27: 0.389 | I27: =G27*(CALC!$D$11-CALC!$H$21) -> -3.89 | Z27: 0
A28: 315 | B28: FPUSL | C28: E | E28: 1920-450315-010 | F28: E1920-450315-010 | G28: 0.376 | I28: =G28*(CALC!$D$11-CALC!$H$21) -> -3.76 | Z28: 0
A29: 25 | B29: F600 | C29: E | E29: 1000-090025-001 | F29: =C29&E29 -> E1000-090025-001 | G29: 0.148 | I29: =G29*(CALC!$D$11-CALC!$H$21) -> -1.48 | Z29: 0
A30: 32 | B30: F600 | C30: E | E30: 1000-090032-001 | F30: E1000-090032-001 | G30: 0.182 | I30: =G30*(CALC!$D$11-CALC!$H$21) -> -1.82 | Z30: 0
A31: 40 | B31: F600 | C31: E | E31: 1000-090040-001 | F31: E1000-090040-001 | G31: 0.23 | I31: =G31*(CALC!$D$11-CALC!$H$21) -> -2.3 | Z31: 0
A32: 50 | B32: F600 | C32: E | E32: 1000-090050-001 | F32: E1000-090050-001 | G32: 0.31 | I32: =G32*(CALC!$D$11-CALC!$H$21) -> -3.1 | Z32: 0
A33: 50 | B33: F600 | C33: E | E33: 1000-125050-001 | F33: E1000-125050-001 | G33: 0.219 | I33: =G33*(CALC!$D$11-CALC!$H$21) -> -2.19 | Z33: 0
A34: 63 | B34: F600 | C34: E | E34: 1000-125063-001 | F34: E1000-125063-001 | G34: 0.29 | I34: =G34*(CALC!$D$11-CALC!$H$21) -> -2.9 | Z34: 0
A35: 75 | B35: F600 | C35: E | E35: 1000-125075-001 | F35: E1000-125075-001 | G35: 0.383 | I35: =G35*(CALC!$D$11-CALC!$H$21) -> -3.83 | Z35: 0
A36: 75 | B36: F600 | C36: E | E36: 1000-160075-001 | F36: =C36&E36 -> E1000-160075-001 | G36: 0.265 | I36: =G36*(CALC!$D$11-CALC!$H$21) -> -2.65 | Z36: 0
A37: 90 | B37: F600 | C37: E | E37: 1000-160090-001 | F37: E1000-160090-001 | G37: 0.336 | I37: =G37*(CALC!$D$11-CALC!$H$21) -> -3.36 | Z37: 0
A38: 40 | B38: F600 | C38: E | E38: 1000-125040-001 | F38: E1000-125040-001 | G38: 0.178 | I38: =G38*(CALC!$D$11-CALC!$H$21) -> -1.78 | Z38: 0
A39: 50 | B39: F600 | C39: E | E39: 1000-160050-001 | F39: E1000-160050-001 | G39: 0.182 | I39: =G39*(CALC!$D$11-CALC!$H$21) -> -1.82 | Z39: 0
A40: 63 | B40: F600 | C40: E | E40: 1000-160063-001 | F40: E1000-160063-001 | G40: 0.222 | I40: =G40*(CALC!$D$11-CALC!$H$21) -> -2.22 | Z40: 0
A41: 25 | B41: F600 | C41: D | D41: SP | E41: 1010-090025-001 | F41: D1010-090025-001 | G41: 0.148 | I41: =G41*(CALC!$D$11-CALC!$H$21)+G41*(CALC!$D$12-CALC!$H$21) -> -2.96 | Z41: SP
A42: 32 | B42: F600 | C42: D | D42: SP | E42: 1010-090032-001 | F42: D1010-090032-001 | G42: 0.182 | I42: =G42*(CALC!$D$11-CALC!$H$21)+G42*(CALC!$D$12-CALC!$H$21) -> -3.64 | Z42: SP
A43: 40 | B43: F600 | C43: D | D43: SP | E43: 1010-090040-001 | F43: D1010-090040-001 | G43: 0.23 | I43: =G43*(CALC!$D$11-CALC!$H$21)+G43*(CALC!$D$12-CALC!$H$21) -> -4.6 | Z43: SP
A44: 50 | B44: F600 | C44: D | D44: SP | E44: 1010-125050-001 | F44: D1010-125050-001 | G44: 0.219 | I44: =G44*(CALC!$D$11-CALC!$H$21)+G44*(CALC!$D$12-CALC!$H$21) -> -4.38 | Z44: SP
A45: 63 | B45: F600 | C45: D | D45: SP | E45: 1010-125063-001 | F45: D1010-125063-001 | G45: 0.29 | I45: =G45*(CALC!$D$11-CALC!$H$21)+G45*(CALC!$D$12-CALC!$H$21) -> -5.8 | Z45: SP
A46: 75 | B46: F600 | C46: D | D46: SP | E46: 1010-160075-001 | F46: D1010-160075-001 | G46: 0.265 | I46: =G46*(CALC!$D$11-CALC!$H$21)+G46*(CALC!$D$12-CALC!$H$21) -> -5.3 | Z46: SP
A47: 90 | B47: F600 | C47: D | D47: SP | E47: 1010-160090-001 | F47: D1010-160090-001 | G47: 0.336 | I47: =G47*(CALC!$D$11-CALC!$H$21)+G47*(CALC!$D$12-CALC!$H$21) -> -6.72 | Z47: SP
A48: 110 | B48: F600 | C48: D | D48: SP | E48: 1000-200110-001 | F48: D1000-200110-001 | G48: 0.354 | I48: =G48*(CALC!$D$11-CALC!$H$21)+G48*(CALC!$D$12-CALC!$H$21) -> -7.08 | Z48: SP
A49: 125 | B49: F600 | C49: D | D49: SP | E49: 1000-200125-001 | F49: D1000-200125-001 | G49: 0.43 | I49: =G49*(CALC!$D$11-CALC!$H$21)+G49*(CALC!$D$12-CALC!$H$21) -> -8.6 | Z49: SP
A50: 40 | B50: F600 | C50: D | D50: SP | E50: 1010-125040-001 | F50: D1010-125040-001 | G50: 0.178 | I50: =G50*(CALC!$D$11-CALC!$H$21)+G50*(CALC!$D$12-CALC!$H$21) -> -3.56 | Z50: SP
A51: 50 | B51: F600 | C51: D | D51: SP | E51: 1010-160050-001 | F51: D1010-160050-001 | G51: 0.182 | I51: =G51*(CALC!$D$11-CALC!$H$21)+G51*(CALC!$D$12-CALC!$H$21) -> -3.64 | Z51: SP
A52: 63 | B52: F600 | C52: D | D52: SP | E52: 1010-160063-001 | F52: D1010-160063-001 | G52: 0.222 | I52: =G52*(CALC!$D$11-CALC!$H$21)+G52*(CALC!$D$12-CALC!$H$21) -> -4.44 | Z52: SP
A53: 25 | B53: FPU | C53: D | D53: SP | E53: 1210-091025-001 | F53: D1210-091025-001 | G53: 0.102 | I53: =G53*(CALC!$D$11-CALC!$H$21)+G53*(CALC!$D$12-CALC!$H$21) -> -2.04 | Z53: SP
A54: 32 | B54: FPU | C54: D | D54: SP | E54: 1210-091032-001 | F54: D1210-091032-001 | G54: 0.126 | I54: =G54*(CALC!$D$11-CALC!$H$21)+G54*(CALC!$D$12-CALC!$H$21) -> -2.52 | Z54: SP
A55: 40 | B55: FPU | C55: D | D55: SP | E55: 1210-111040-001 | F55: D1210-111040-001 | G55: 0.128 | I55: =G55*(CALC!$D$11-CALC!$H$21)+G55*(CALC!$D$12-CALC!$H$21) -> -2.56 | Z55: SP
A56: 50 | B56: FPU | C56: D | D56: SP | E56: 1210-126050-001 | F56: D1210-126050-001 | G56: 0.14 | I56: =G56*(CALC!$D$11-CALC!$H$21)+G56*(CALC!$D$12-CALC!$H$21) -> -2.8 | Z56: SP
A57: 63 | B57: FPU | C57: D | D57: SP | E57: 1210-142063-001 | F57: D1210-142063-001 | G57: 0.159 | I57: =G57*(CALC!$D$11-CALC!$H$21)+G57*(CALC!$D$12-CALC!$H$21) -> -3.18 | Z57: SP
A58: 75 | B58: FPU | C58: D | D58: SP | E58: 1210-162075-001 | F58: D1210-162075-001 | G58: 0.166 | I58: =G58*(CALC!$D$11-CALC!$H$21)+G58*(CALC!$D$12-CALC!$H$21) -> -3.32 | Z58: SP
A59: 90 | B59: FPU | C59: D | D59: SP | E59: 1210-182090-001 | F59: D1210-182090-001 | G59: 0.18 | I59: =G59*(CALC!$D$11-CALC!$H$21)+G59*(CALC!$D$12-CALC!$H$21) -> -3.6 | Z59: SP
A60: 110 | B60: FPUSL | C60: D | D60: SP | E60: 1920-200110-030 | F60: D1920-200110-030 | G60: 0.237 | I60: =G60*(CALC!$D$11-CALC!$H$21)+G60*(CALC!$D$12-CALC!$H$21) -> -4.74 | Z60: SP
A61: 125 | B61: FPUSL | C61: D | D61: SP | E61: 1920-200125-030 | F61: D1920-200125-030 | G61: 0.292 | I61: =G61*(CALC!$D$11-CALC!$H$21)+G61*(CALC!$D$12-CALC!$H$21) -> -5.84 | Z61: SP
A62: 140 | B62: FPUSL | C62: D | D62: SP | E62: 1920-225140-030 | F62: D1920-225140-030 | G62: 0.29 | I62: =G62*(CALC!$D$11-CALC!$H$21)+G62*(CALC!$D$12-CALC!$H$21) -> -5.8 | Z62: SP
A63: 160 | B63: FPUSL | C63: D | D63: SP | E63: 1920-250160-030 | F63: D1920-250160-030 | G63: 0.306 | I63: =G63*(CALC!$D$11-CALC!$H$21)+G63*(CALC!$D$12-CALC!$H$21) -> -6.12 | Z63: SP
A64: 225 | B64: FPUSL | C64: D | D64: SP | E64: 1920-315225-030 | F64: D1920-315225-030 | G64: 0.389 | I64: =G64*(CALC!$D$11-CALC!$H$21)+G64*(CALC!$D$12-CALC!$H$21) -> -7.78 | Z64: SP
A65: 315 | B65: FPUSL | C65: D | D65: SP | E65: 1920-450315-010 | F65: D1920-450315-010 | G65: 0.376 | I65: =G65*(CALC!$D$11-CALC!$H$21)+G65*(CALC!$D$12-CALC!$H$21) -> -7.52 | Z65: SP
A66: 25 | B66: F600 | C66: D | D66: D | E66: 1030-125025-001 | F66: D1030-125025-001 | G66: 0.221 | I66: =G66*(((CALC!$D$11+CALC!$D$12)/2)-CALC!$H$21) -> -2.21 | Z66: D
A67: 32 | B67: F600 | C67: D | D67: D | E67: 1030-125032-001 | F67: D1030-125032-001 | G67: 0.283 | I67: =G67*(((CALC!$D$11+CALC!$D$12)/2)-CALC!$H$21) -> -2.83 | Z67: D
A68: 40 | B68: F600 | C68: D | D68: D | E68: 1030-160040-001 | F68: =C68&E68 -> D1030-160040-001 | G68: 0.255 | I68: =G68*(((CALC!$D$11+CALC!$D$12)/2)-CALC!$H$21) -> -2.55 | Z68: D
A69: 50 | B69: F600 | C69: D | D69: D | E69: 1030-160050-001 | F69: D1030-160050-001 | G69: 0.338 | I69: =G69*(((CALC!$D$11+CALC!$D$12)/2)-CALC!$H$21) -> -3.38 | Z69: =D69 -> D
A70: 63 | B70: F600 | C70: D | D70: D | E70: 1030-200063-001 | F70: D1030-200063-001 | G70: 0.363 | I70: =G70*(((CALC!$D$11+CALC!$D$12)/2)-CALC!$H$21) -> -3.63 | Z70: D
A71: 32 | B71: F600 | C71: D | D71: D | E71: 1030-160032-001 | F71: D1030-160032-001 | G71: 0.208 | I71: =G71*(((CALC!$D$11+CALC!$D$12)/2)-CALC!$H$21) -> -2.08 | Z71: D
A72: 25 | B72: FPU | C72: D | D72: D | E72: 1230-111025-001 | F72: D1230-111025-001 | G72: 0.146 | I72: =G72*(((CALC!$D$11+CALC!$D$12)/2)-CALC!$H$21) -> -1.46 | Z72: D
A73: 32 | B73: FPU | C73: D | D73: D | E73: 1230-126032-001 | F73: D1230-126032-001 | G73: 0.16 | I73: =G73*(((CALC!$D$11+CALC!$D$12)/2)-CALC!$H$21) -> -1.6 | Z73: D
A74: 40 | B74: FPU | C74: D | D74: D | E74: 1230-142040-001 | F74: D1230-142040-001 | G74: 0.176 | I74: =G74*(((CALC!$D$11+CALC!$D$12)/2)-CALC!$H$21) -> -1.76 | Z74: D
A75: 50 | B75: FPU | C75: D | D75: D | E75: 1230-182050-001 | F75: D1230-182050-001 | G75: 0.173 | I75: =G75*(((CALC!$D$11+CALC!$D$12)/2)-CALC!$H$21) -> -1.73 | Z75: D
A76: 63 | B76: FPU | C76: D | D76: D | E76: 1230-202063-001 | F76: D1230-202063-001 | G76: 0.198 | I76: =G76*(((CALC!$D$11+CALC!$D$12)/2)-CALC!$H$21) -> -1.98 | Z76: D
A77: 75 | B77: FPU | C77: D | D77: D | E77: 1230-202075-001 | F77: D1230-202075-001 | G77: 0.257 | I77: =G77*(((CALC!$D$11+CALC!$D$12)/2)-CALC!$H$21) -> -2.57 | Z77: D
Z78: 0
Z79: 0
Z80: 0
Z81: 0
Z82: 0
Z83: 0
Z84: 0
Z85: 0
Z86: 0
Z87: 0
Z88: 0

Sheet Product_description (hidden)
A1: Code | B1: System | C1: SP1 | D1: SP2 | E1: CP | F1: ND | G1: Description
A2: =PARAMETER_HL!E4 -> 1010-090025-001 | B2: F600 | C2: 25 | E2: 90 | F2: (DN20) | G2: =B2&" "&C2&D2&" / "&E2&" "&F2 -> F600 25 / 90 (DN20)
A3: =PARAMETER_HL!E5 -> 1010-090032-001 | B3: F600 | C3: 32 | E3: 90 | F3: (DN25) | G3: =B3&" "&C3&D3&" / "&E3&" "&F3 -> F600 32 / 90 (DN25)
A4: =PARAMETER_HL!E6 -> 1010-090040-001 | B4: F600 | C4: 40 | E4: 90 | F4: (DN32) | G4: F600 40 / 90 (DN32)
A5: =PARAMETER_HL!E7 -> 1010-125050-001 | B5: F600 | C5: 50 | E5: 125 | F5: (DN40) | G5: F600 50 / 125 (DN40)
A6: =PARAMETER_HL!E8 -> 1010-125063-001 | B6: F600 | C6: 63 | E6: 125 | F6: (DN50) | G6: F600 63 / 125 (DN50)
A7: =PARAMETER_HL!E9 -> 1010-160075-001 | B7: F600 | C7: 75 | E7: 160 | F7: (DN65) | G7: F600 75 / 160 (DN65)
A8: =PARAMETER_HL!E10 -> 1010-160090-001 | B8: F600 | C8: 90 | E8: 160 | F8: (DN80) | G8: F600 90 / 160 (DN80)
A9: =PARAMETER_HL!E11 -> 1000-200110-001 | B9: F600 | C9: 110 | E9: 200 | F9: (DN100) | G9: F600 110 / 200 (DN100)
A10: =PARAMETER_HL!E12 -> 1000-200125-001 | B10: F600 | C10: 125 | E10: 200 | F10: (DN100) | G10: F600 125 / 200 (DN100)
A11: =PARAMETER_HL!E13 -> 1010-125040-001 | B11: F600 | C11: 40 | E11: 125 | F11: (DN32) | G11: F600 40 / 125 (DN32)
A12: =PARAMETER_HL!E14 -> 1010-160050-001 | B12: F600 | C12: 50 | E12: 160 | F12: (DN40) | G12: F600 50 / 160 (DN40)
A13: =PARAMETER_HL!E15 -> 1010-160063-001 | B13: F600 | C13: 63 | E13: 160 | F13: (DN50) | G13: F600 63 / 160 (DN50)
A14: =PARAMETER_HL!E16 -> 1210-091025-001 | B14: FPU | C14: 25 | E14: 91 | F14: (DN20) | G14: FPU 25 / 91 (DN20)
A15: =PARAMETER_HL!E17 -> 1210-091032-001 | B15: FPU | C15: 32 | E15: 91 | F15: (DN25) | G15: FPU 32 / 91 (DN25)
A16: =PARAMETER_HL!E18 -> 1210-111040-001 | B16: FPU | C16: 40 | E16: 111 | F16: (DN32) | G16: FPU 40 / 111 (DN32)
A17: =PARAMETER_HL!E19 -> 1210-126050-001 | B17: FPU | C17: 50 | E17: 126 | F17: (DN40) | G17: FPU 50 / 126 (DN40)
A18: =PARAMETER_HL!E20 -> 1210-142063-001 | B18: FPU | C18: 63 | E18: 142 | F18: (DN50) | G18: FPU 63 / 142 (DN50)
A19: =PARAMETER_HL!E21 -> 1210-162075-001 | B19: FPU | C19: 75 | E19: 162 | F19: (DN65) | G19: FPU 75 / 162 (DN65)
A20: =PARAMETER_HL!E22 -> 1210-182090-001 | B20: FPU | C20: 90 | E20: 182 | F20: (DN80) | G20: FPU 90 / 182 (DN80)
A21: =PARAMETER_HL!E23 -> 1920-200110-030 | B21: FPUSL | C21: 110 | E21: 200 | F21: (DN100) | G21: FPUSL 110 / 200 (DN100)
A22: =PARAMETER_HL!E24 -> 1920-200125-030 | B22: FPUSL | C22: 25 | E22: 200 | F22: (DN20) | G22: FPUSL 25 / 200 (DN20)
A23: =PARAMETER_HL!E25 -> 1920-225140-030 | B23: FPUSL | C23: 140 | E23: 225 | F23: (DN125) | G23: FPUSL 140 / 225 (DN125)
A24: =PARAMETER_HL!E26 -> 1920-250160-030 | B24: FPUSL | C24: 160 | E24: 250 | F24: (DN150) | G24: FPUSL 160 / 250 (DN150)
A25: =PARAMETER_HL!E27 -> 1920-315225-030 | B25: FPUSL | C25: 225 | E25: 315 | F25: (DN200) | G25: FPUSL 225 / 315 (DN200)
A26: =PARAMETER_HL!E28 -> 1920-450315-010 | B26: FPUSL | C26: 315 | E26: 450 | F26: (DN250) | G26: FPUSL 315 / 450 (DN250)
A27: =PARAMETER_HL!E29 -> 1000-090025-001 | B27: F600 | C27: 25 | E27: 90 | F27: (DN20) | G27: F600 25 / 90 (DN20)
A28: =PARAMETER_HL!E30 -> 1000-090032-001 | B28: F600 | C28: 32 | E28: 90 | F28: (DN25) | G28: F600 32 / 90 (DN25)
A29: =PARAMETER_HL!E31 -> 1000-090040-001 | B29: F600 | C29: 40 | E29: 90 | F29: (DN32) | G29: F600 40 / 90 (DN32)
A30: =PARAMETER_HL!E32 -> 1000-090050-001 | B30: F600 | C30: 50 | E30: 90 | F30: (DN40) | G30: F600 50 / 90 (DN40)
A31: =PARAMETER_HL!E33 -> 1000-125050-001 | B31: F600 | C31: 50 | E31: 125 | F31: (DN40) | G31: F600 50 / 125 (DN40)
A32: =PARAMETER_HL!E34 -> 1000-125063-001 | B32: F600 | C32: 63 | E32: 125 | F32: (DN50) | G32: F600 63 / 125 (DN50)
A33: =PARAMETER_HL!E35 -> 1000-125075-001 | B33: F600 | C33: 75 | E33: 125 | F33: (DN65) | G33: F600 75 / 125 (DN65)
A34: =PARAMETER_HL!E36 -> 1000-160075-001 | B34: F600 | C34: 75 | E34: 160 | F34: (DN65) | G34: F600 75 / 160 (DN65)
A35: =PARAMETER_HL!E37 -> 1000-160090-001 | B35: F600 | C35: 90 | E35: 160 | F35: (DN80) | G35: F600 90 / 160 (DN80)
A36: =PARAMETER_HL!E38 -> 1000-125040-001 | B36: F600 | C36: 40 | E36: 125 | F36: (DN32) | G36: F600 40 / 125 (DN32)
A37: =PARAMETER_HL!E39 -> 1000-160050-001 | B37: F600 | C37: 50 | E37: 160 | F37: (DN40) | G37: F600 50 / 160 (DN40)
A38: =PARAMETER_HL!E40 -> 1000-160063-001 | B38: F600 | C38: 63 | E38: 160 | F38: (DN50) | G38: F600 63 / 160 (DN50)
A39: =PARAMETER_HL!E41 -> 1010-090025-001 | B39: F600 | C39: 25 | E39: 90 | F39: (DN20) | G39: F600 25 / 90 (DN20)
A40: =PARAMETER_HL!E42 -> 1010-090032-001 | B40: F600 | C40: 32 | E40: 90 | F40: (DN25) | G40: F600 32 / 90 (DN25)
A41: =PARAMETER_HL!E43 -> 1010-090040-001 | B41: F600 | C41: 40 | E41: 90 | F41: (DN32) | G41: F600 40 / 90 (DN32)
A42: =PARAMETER_HL!E44 -> 1010-125050-001 | B42: F600 | C42: 50 | E42: 125 | F42: (DN40) | G42: F600 50 / 125 (DN40)
A43: =PARAMETER_HL!E45 -> 1010-125063-001 | B43: F600 | C43: 63 | E43: 125 | F43: (DN50) | G43: F600 63 / 125 (DN50)
A44: =PARAMETER_HL!E46 -> 1010-160075-001 | B44: F600 | C44: 75 | E44: 160 | F44: (DN65) | G44: F600 75 / 160 (DN65)
A45: =PARAMETER_HL!E47 -> 1010-160090-001 | B45: F600 | C45: 90 | E45: 160 | F45: (DN80) | G45: F600 90 / 160 (DN80)
A46: =PARAMETER_HL!E48 -> 1000-200110-001 | B46: F600 | C46: 110 | E46: 200 | F46: (DN100) | G46: F600 110 / 200 (DN100)
A47: =PARAMETER_HL!E49 -> 1000-200125-001 | B47: F600 | C47: 125 | E47: 200 | F47: (DN100) | G47: F600 125 / 200 (DN100)
A48: =PARAMETER_HL!E50 -> 1010-125040-001 | B48: F600 | C48: 40 | E48: 125 | F48: (DN32) | G48: F600 40 / 125 (DN32)
A49: =PARAMETER_HL!E51 -> 1010-160050-001 | B49: F600 | C49: 50 | E49: 160 | F49: (DN40) | G49: F600 50 / 160 (DN40)
A50: =PARAMETER_HL!E52 -> 1010-160063-001 | B50: F600 | C50: 63 | E50: 160 | F50: (DN50) | G50: F600 63 / 160 (DN50)
A51: =PARAMETER_HL!E53 -> 1210-091025-001 | B51: FPU | C51: 25 | E51: 91 | F51: (DN20) | G51: FPU 25 / 91 (DN20)
A52: =PARAMETER_HL!E54 -> 1210-091032-001 | B52: FPU | C52: 32 | E52: 91 | F52: (DN25) | G52: FPU 32 / 91 (DN25)
A53: =PARAMETER_HL!E55 -> 1210-111040-001 | B53: FPU | C53: 40 | E53: 111 | F53: (DN32) | G53: FPU 40 / 111 (DN32)
A54: =PARAMETER_HL!E56 -> 1210-126050-001 | B54: FPU | C54: 50 | E54: 126 | F54: (DN40) | G54: FPU 50 / 126 (DN40)
A55: =PARAMETER_HL!E57 -> 1210-142063-001 | B55: FPU | C55: 63 | E55: 142 | F55: (DN50) | G55: FPU 63 / 142 (DN50)
A56: =PARAMETER_HL!E58 -> 1210-162075-001 | B56: FPU | C56: 75 | E56: 162 | F56: (DN65) | G56: FPU 75 / 162 (DN65)
A57: =PARAMETER_HL!E59 -> 1210-182090-001 | B57: FPU | C57: 90 | E57: 182 | F57: (DN80) | G57: FPU 90 / 182 (DN80)
A58: =PARAMETER_HL!E60 -> 1920-200110-030 | B58: FPUSL | C58: 110 | E58: 200 | F58: (DN100) | G58: FPUSL 110 / 200 (DN100)
A59: =PARAMETER_HL!E61 -> 1920-200125-030 | B59: FPUSL | C59: 125 | E59: 200 | F59: (DN100) | G59: FPUSL 125 / 200 (DN100)
A60: =PARAMETER_HL!E62 -> 1920-225140-030 | B60: FPUSL | C60: 140 | E60: 225 | F60: (DN125) | G60: FPUSL 140 / 225 (DN125)
A61: =PARAMETER_HL!E63 -> 1920-250160-030 | B61: FPUSL | C61: 160 | E61: 250 | F61: (DN150) | G61: FPUSL 160 / 250 (DN150)
A62: =PARAMETER_HL!E64 -> 1920-315225-030 | B62: FPUSL | C62: 225 | E62: 315 | F62: (DN200) | G62: FPUSL 225 / 315 (DN200)
A63: =PARAMETER_HL!E65 -> 1920-450315-010 | B63: FPUSL | C63: 315 | E63: 450 | F63: (DN250) | G63: FPUSL 315 / 450 (DN250)
A64: =PARAMETER_HL!E66 -> 1030-125025-001 | B64: F600 | C64: 25 | D64: 25 | E64: 125 | F64: (DN 2x20) | G64: =B64&" "&C64&"+"&D64&" / "&E64&" "&F64 -> F600 25+25 / 125 (DN 2x20)
A65: =PARAMETER_HL!E67 -> 1030-125032-001 | B65: F600 | C65: 32 | D65: 32 | E65: 125 | F65: (DN 2x25) | G65: F600 32+32 / 125 (DN 2x25)
A66: =PARAMETER_HL!E68 -> 1030-160040-001 | B66: F600 | C66: 40 | D66: 40 | E66: 160 | F66: (DN 2x32) | G66: F600 40+40 / 160 (DN 2x32)
A67: =PARAMETER_HL!E69 -> 1030-160050-001 | B67: F600 | C67: 50 | D67: 50 | E67: 160 | F67: (DN 2x40) | G67: F600 50+50 / 160 (DN 2x40)
A68: =PARAMETER_HL!E70 -> 1030-200063-001 | B68: F600 | C68: 63 | D68: 63 | E68: 200 | F68: (DN 2x50) | G68: F600 63+63 / 200 (DN 2x50)
A69: =PARAMETER_HL!E71 -> 1030-160032-001 | B69: F600 | C69: 32 | D69: 32 | E69: 160 | F69: (DN 2x25) | G69: F600 32+32 / 160 (DN 2x25)
A70: =PARAMETER_HL!E72 -> 1230-111025-001 | B70: FPU | C70: 25 | D70: 25 | E70: 111 | F70: (DN 2x20) | G70: FPU 25+25 / 111 (DN 2x20)
A71: =PARAMETER_HL!E73 -> 1230-126032-001 | B71: FPU | C71: 32 | D71: 32 | E71: 126 | F71: (DN 2x25) | G71: FPU 32+32 / 126 (DN 2x25)
A72: =PARAMETER_HL!E74 -> 1230-142040-001 | B72: FPU | C72: 40 | D72: 40 | E72: 142 | F72: (DN 2x32) | G72: FPU 40+40 / 142 (DN 2x32)
A73: =PARAMETER_HL!E75 -> 1230-182050-001 | B73: FPU | C73: 50 | D73: 50 | E73: 182 | F73: (DN 2x40) | G73: FPU 50+50 / 182 (DN 2x40)
A74: =PARAMETER_HL!E76 -> 1230-202063-001 | B74: FPU | C74: 63 | D74: 63 | E74: 202 | F74: (DN 2x50) | G74: FPU 63+63 / 202 (DN 2x50)
A75: =PARAMETER_HL!E77 -> 1230-202075-001 | B75: FPU | C75: 75 | D75: 75 | E75: 202 | F75: (DN 2x65) | G75: FPU 75+75 / 202 (DN 2x65)
A76: =PARAMETER_HL!E78 -> 0 | G76: =B76&" "&C76&D76&" / "&E76&" "&F76 -> /
A77: =PARAMETER_HL!E79 -> 0 | G77: /
A78: =PARAMETER_HL!E80 -> 0 | G78: /
A79: =PARAMETER_HL!E81 -> 0 | G79: /
A80: =PARAMETER_HL!E82 -> 0 | G80: /
A81: =PARAMETER_HL!E83 -> 0 | G81: /
A82: =PARAMETER_HL!E84 -> 0 | G82: /
A83: =PARAMETER_HL!E85 -> 0 | G83: /
A84: =PARAMETER_HL!E86 -> 0 | G84: /
A85: =PARAMETER_HL!E87 -> 0 | G85: /
A86: =PARAMETER_HL!E88 -> 0 | G86: /
A87: =PARAMETER_HL!E89 -> 0 | G87: /
A88: =PARAMETER_HL!E90 -> 0 | G88: /
A89: =PARAMETER_HL!E91 -> 0 | G89: /
A90: =PARAMETER_HL!E92 -> 0 | G90: /
A91: =PARAMETER_HL!E93 -> 0 | G91: /
A92: =PARAMETER_HL!E94 -> 0 | G92: /
A93: =PARAMETER_HL!E95 -> 0 | G93: /
A94: =PARAMETER_HL!E96 -> 0 | G94: /
A95: =PARAMETER_HL!E97 -> 0 | G95: /
A96: =PARAMETER_HL!E98 -> 0 | G96: /
A97: =PARAMETER_HL!E99 -> 0 | G97: /
A98: =PARAMETER_HL!E100 -> 0 | G98: /
A99: =PARAMETER_HL!E101 -> 0 | G99: /
A100: =PARAMETER_HL!E102 -> 0 | G100: /
A101: =PARAMETER_HL!E103 -> 0 | G101: /
A102: =PARAMETER_HL!E104 -> 0 | G102: /
A103: =PARAMETER_HL!E105 -> 0 | G103: /
A104: =PARAMETER_HL!E106 -> 0 | G104: /
A105: =PARAMETER_HL!E107 -> 0 | G105: /
A106: =PARAMETER_HL!E108 -> 0 | G106: /
A107: =PARAMETER_HL!E109 -> 0 | G107: /
A108: =PARAMETER_HL!E110 -> 0 | G108: /
A109: =PARAMETER_HL!E111 -> 0 | G109: /
A110: =PARAMETER_HL!E112 -> 0 | G110: /
A111: =PARAMETER_HL!E113 -> 0 | G111: /
A112: =PARAMETER_HL!E114 -> 0 | G112: /
A113: =PARAMETER_HL!E115 -> 0 | G113: /
A114: =PARAMETER_HL!E116 -> 0 | G114: /
A115: =PARAMETER_HL!E117 -> 0 | G115: /
A116: =PARAMETER_HL!E118 -> 0 | G116: /
A117: =PARAMETER_HL!E119 -> 0 | G117: /
A118: =PARAMETER_HL!E120 -> 0 | G118: /
A119: =PARAMETER_HL!E121 -> 0 | G119: /
A120: =PARAMETER_HL!E122 -> 0 | G120: /
A121: =PARAMETER_HL!E123 -> 0 | G121: /
A122: =PARAMETER_HL!E124 -> 0 | G122: /
A123: =PARAMETER_HL!E125 -> 0 | G123: /
A124: =PARAMETER_HL!E126 -> 0 | G124: /
A125: =PARAMETER_HL!E127 -> 0 | G125: /
A126: =PARAMETER_HL!E128 -> 0 | G126: /
A127: =PARAMETER_HL!E129 -> 0 | G127: /
A128: =PARAMETER_HL!E130 -> 0 | G128: /
A129: =PARAMETER_HL!E131 -> 0 | G129: /
A130: =PARAMETER_HL!E132 -> 0 | G130: /
A131: =PARAMETER_HL!E133 -> 0 | G131: =B131&" "&C131&D131&" / "&E131&" "&F131 -> /
A132: =PARAMETER_HL!E134 -> 0 | G132: /
A133: =PARAMETER_HL!E135 -> 0 | G133: /
A134: =PARAMETER_HL!E136 -> 0 | G134: /
A135: =PARAMETER_HL!E137 -> 0 | G135: /
A136: =PARAMETER_HL!E138 -> 0 | G136: /
A137: =PARAMETER_HL!E139 -> 0 | G137: /
A138: =PARAMETER_HL!E140 -> 0 | G138: /
A139: =PARAMETER_HL!E141 -> 0 | G139: /
A140: =PARAMETER_HL!E142 -> 0 | G140: /
A141: =PARAMETER_HL!E143 -> 0 | G141: /
A142: =PARAMETER_HL!E144 -> 0 | G142: /
A143: =PARAMETER_HL!E145 -> 0 | G143: /
A144: =PARAMETER_HL!E146 -> 0 | G144: /
A145: =PARAMETER_HL!E147 -> 0 | G145: /
A146: =PARAMETER_HL!E148 -> 0 | G146: /
A147: =PARAMETER_HL!E149 -> 0
A148: =PARAMETER_HL!E150 -> 0
A149: =PARAMETER_HL!E151 -> 0
A150: =PARAMETER_HL!E152 -> 0
A151: =PARAMETER_HL!E153 -> 0
A152: =PARAMETER_HL!E154 -> 0
A153: =PARAMETER_HL!E155 -> 0
A154: =PARAMETER_HL!E156 -> 0
A155: =PARAMETER_HL!E157 -> 0
A156: =PARAMETER_HL!E158 -> 0
A157: =PARAMETER_HL!E159 -> 0
A158: =PARAMETER_HL!E160 -> 0
A159: =PARAMETER_HL!E161 -> 0
A160: =PARAMETER_HL!E162 -> 0
A161: =PARAMETER_HL!E163 -> 0
A162: =PARAMETER_HL!E164 -> 0
A163: =PARAMETER_HL!E165 -> 0
A164: =PARAMETER_HL!E166 -> 0
A165: =PARAMETER_HL!E167 -> 0
A166: =PARAMETER_HL!E168 -> 0
A167: =PARAMETER_HL!E169 -> 0
A168: =PARAMETER_HL!E170 -> 0
A169: =PARAMETER_HL!E171 -> 0
A170: =PARAMETER_HL!E172 -> 0
A171: =PARAMETER_HL!E173 -> 0
A172: =PARAMETER_HL!E174 -> 0
A173: =PARAMETER_HL!E175 -> 0
A174: =PARAMETER_HL!E176 -> 0
A175: =PARAMETER_HL!E177 -> 0
A176: =PARAMETER_HL!E178 -> 0
A177: =PARAMETER_HL!E179 -> 0
A178: =PARAMETER_HL!E180 -> 0
A179: =PARAMETER_HL!E181 -> 0
A180: =PARAMETER_HL!E182 -> 0
A181: =PARAMETER_HL!E183 -> 0
A182: =PARAMETER_HL!E184 -> 0
A183: =PARAMETER_HL!E185 -> 0
A184: =PARAMETER_HL!E186 -> 0
A185: =PARAMETER_HL!E187 -> 0
A186: =PARAMETER_HL!E188 -> 0
A187: =PARAMETER_HL!E189 -> 0
A188: =PARAMETER_HL!E190 -> 0
A189: =PARAMETER_HL!E191 -> 0
A190: =PARAMETER_HL!E192 -> 0
A191: =PARAMETER_HL!E193 -> 0
A192: =PARAMETER_HL!E194 -> 0
A193: =PARAMETER_HL!E195 -> 0
A194: =PARAMETER_HL!E196 -> 0
A195: =PARAMETER_HL!E197 -> 0
A196: =PARAMETER_HL!E198 -> 0
A197: =PARAMETER_HL!E199 -> 0
A198: =PARAMETER_HL!E200 -> 0
A199: =PARAMETER_HL!E201 -> 0
A200: =PARAMETER_HL!E202 -> 0
... 23 more rows

Sheet Language (hidden)
A1: INDEX | B1: ENGLISH | C1: GERMAN | D1: BULAGRIAN | E1: DUTCH | F1: FRENCH | G1: ROMANIAN | H1: TURKISH | I1: RUSSIAN | J1: Czech | K1: ITALIAN | L1: HUNGARIAN | M1: CROATIAN | N1: POLISH | O1: Danish | P1: Norweigian | Q1: Swedish
A2: 1 | B2: PIPE SIZING FOR SINGLE OR DOUBLE LINES BETWEEN 2 NET POSITIONS | C2: ROHRLEITUNGSBERECHNUNG - VERBINDUNG VON ZWEI NETZPUNKTEN MIT EINZEL- ODER DOPPELLEITUNG | D2: ОРАЗМЕРЯВАНЕ НА ТРЪБОПРОВОД - СЪЕДИНЯВАНЕ НА 2 ТОЧКИ ЧРЕЗ ЕДНО- ИЛИ ДВУТРЪБНА СИСТЕМА | E2: BUISAFMETING VOOR ENKEL OF DUBBEL LEIDINGSYSTEEM VAN A NAAR B | F2: DIMENSIONNEMENT TUBE FLEXALEN LIGNE SIMPLE OU DOUBLE POUR LIAISON ENTRE BATIMENTS | G2: DIMENSIONARE CONDUCTE CIRCUITE SIMPLE SAU DUBLE INTRE DOUA PUNCTE DIN RETEA | H2: İKİ NOKTA ARASINDAKİ TEKLİ VEYA İKİLİ HATLAR İÇİN BORU EBADI | I2: РАСЧЕТ ДИАМЕТРА ТРУБ ДЛЯ ОДНОТРУБНОЙ ИЛИ ДВУХТРУБНОЙ СИСТЕМ МЕЖДУ ДВУМЯ ТОЧКАМИ | J2: VÝPOČET POTRUBÍ PRO TRUBNÍ VEDENÍ - SPOJENÍ DVOU BODŮJEDNOTRUBNÍM NEBO DVOUTRUBNÍM VEDENÍM | K2: Dimensionamento Tubo per linee singole o doppie tra due punti distinti | L2: Cső méretezése - két pontot összekötő egy/duplavezetékes csőrendszer | M2: DIMENZIONIRANJE CJEVOVODA - SPOJ 2 TOČKE SUSTAVA ( A-B ) - ZA JEDNOCJEVNE ILI DVOCJEVNE SUSTAVE | N2: Program doboru średnic dla rur pojedyńczych i podwójnych FLEXALEN pomiędzy źródłem ciepła i odbiorcą | O2: RØR DIMENSIONERING FOR ENKELT ELLER DOBBELT RØRFØRING IMELLEM TO PUNKTER | P2: DIMENSJONERING AV ENKLE ELLER DOBLE RØRET MELLOM TO PUNKTER | Q2: UTFORMNINGAV ENKLA ELLER DUBBLA KULVERT MELLAN TVÅ PUNKTER
A3: 2 | B3: FLEXALEN - PREINSULATED PIPE SYSTEMS | C3: FLEXALEN - ISOLIERTE ROHRSYSTEME | D3: FLEXALEN - СИСТЕМА ОТ ПРЕДВАРИТЕЛНО ИЗОЛИРАНИ ТРЪБИ | E3: FLEXALEN VOORGEISOLEERD LEIDINGSYSTEEM | F3: FLEXALEN - SYSTEME TUBES PRE-ISOLES | G3: FLEXALEN-SISTEM CONDUCTE PREIZOLATE | H3: FLEXALEN - ÖNYALITIMLI BORU SİSTEMLERİ | I3: FLEXALEN - ПРЕДВАРИТЕЛЬНО ИЗОЛИРОВАННЫЕ ТРУБЫ | J3: FLEXALEN - PŘEDIZOLOVANÉ POTRUBNÍ SYSTÉMY | K3: Flexalen 600 - Sistema di tubi preisolati | L3: Flexalen - előszigetelt csőrendszer | M3: FLEXALEN 600 - PREDIZOLIRANI CIJEVNI SUSTAV | N3: Flexalen - system preizolowanych rur | O3: FLEXALEN - PRÆ-ISOLERET RØRSYSTEM | P3: FLEXALEN - PREFABRIKKERT RØRSYSTEM | Q3: FLEXALEN - PREFABRIKEREDE RÖRSYSTEMER
A4: 3 | B4: MADE FOR DOMESTIC WATER DISTRIBUTION, COOLING AND HEATING SUPPLY LINES | C4: BERECHNUNG GILT FÜR BRAUCHWASSER-, HEIZUNG- UND KÜHLLEITUNGEN | D4: ИЗЧИСЛЕНИЕТО Е ВАЛИДНО ЗА ПИТЕЙНА ВОДА И ЗА ВОДА ПРИГОДНА ЗА ОТОПЛИТЕЛНИ СИСТЕМИ | E4: GESCHIKT VOOR TAPWATER EN WARMTE/KOUDE DISTRIBUTIE | F4: CE PROGRAMME EST DEFINI POUR LE CALCUL DES RESEAUX DE CHAUFFAGE ET DE DISTRIBUTION D'EAU SANITAIRE | G4: FABRICATE PENTRU RETELE DE DISTRIBUTIE A ENERGIEI TERMICE SI APEI MENAJERE | H4: SICAK-SOĞUK SU TESİSATLARI VE BÖLGESEL ISITMA HATLARI İÇİN YAPILMIŞTIR | I4: ЭТОТ РАСЧЕТ СДЕЛАН ДЛЯ СИСТЕМ БЫТОВОГО ВОДОСНАБЖЕНИЯ И ЦЕНТРАЛЬНОГО ОТОПЛЕНИЯ | J4: VYVINUTO PRO ROZVODY VODY A SYSTÉMY DÁLKOVÉHO TOPENÍ | K4: Prodotto per distribuire acqua sanitaria e reti di teleriscaldamento | L4: Számítások használati és Fűtővís rendszerek esetében érvényesek | M4: IZRAČUN VRIJEDI ZA SANITARNU I NORMALNO KONDICIONIRANU VODU U TOPLOVODNIM SUSTAVIMA GRIJANJA | N4: Przeznaczony do dystrybucji ciepłej wody użytkowej i uzdatnionej wody grzewczej | O4: FREMSTILLET TIL DISTRIBUTION AF VARMT BRUGSVAND, KØLING OG FJERNVARME | P4: KONSTRUERT FOR UTDELING AV VARMTVANN, KØLING OG FJERNVARME | Q4: AVSETT FÖR DISTRIBUTION AV VATTEN, FJÄRKYLA OCH FJÄRVARME
A5: 4 | B5: QUALITY FACTOR | C5: QUALITÄTSFAKTOR | D5: КАЧЕСТВЕН ФАКТОР | E5: KWALITEITS FACTOR | F5: FACT QUALITE | G5: FACTOR CALITATE | H5: KALİTE FAKTÖRÜ | I5: КАЧЕСТВЕННЫЙ ФАКТОР | J5: FAKTOR JAKOSTI | K5: Fattore Qualità | L5: Minőségi tényező | M5: KVALITATIVNI FAKTOR | N5: Współczynnik jakości | O5: KVALITETS FAKTOR | P5: KVALITET FACTOR | Q5: KVALITETS FAKTOR
A6: 5 | B6: TEMPERATUR FACTOR | C6: TEMPERATURFAKTOR | D6: ТЕМПЕРАТУРЕН ФАКТОР | E6: TEMPERATUUR FACTOR | F6: FACT TEMPERATURE | G6: FACTOR TEMPERATURA | H6: SICAKLIK FAKTÖRÜ | I6: ТЕМПЕРАТУРНЫЙ ФАКТОР | J6: FAKTOR TEPLOTY | K6: Fattore Temp. | L6: Hőmérsékleti tényező | M6: TEMPERATURNI FAKTOR | N6: Współczynnik temperatury | O6: TEMPERATUR FAKTOR | P6: TEMPERATUR FAKTOR | Q6: TEMPERATUR FAKTOR
A7: 6 | B7: SIZE TUNING | C7: ANPASSUNG DIMENSION | D7: ДИМЕНЗИЯ ЗА НАПАСВАНЕ | E7: OPTIMALISERINGS FACTOR | F7: ADAPTATION DIAMETRE | G7: OPTIMIZARE DIMENSIONARE | H7: BOYUT AYARLAMA | I7: ПОДБОР ДИАМЕТРА | J7: PŘIZPŮSOBENÍ DIMENZE | K7: Sistema di dimensionamento | L7: Méretezés | M7: DIMENZIONIRANJE | N7: Współczynnik doboru średnic | O7: REGULERING AF STØRRELSE | P7: REGULERING AV STØRRELSE | Q7: REGLERING AV STORLEK
A8: 7 | B8: FLOW TEMPERATURE (Tf) | C8: TEMPERATUR VORLAUF (Tf) | D8: ТЕМПЕРАТУРА ПОДАВАНЕ | E8: AANVOER TEMPERATUUR | F8: TEMPERATURE DEPART | G8: TEMPERATURA TUR | H8: GİDİŞ SICAKLIĞI [°C] Tg | I8: ТЕМПЕРАТУРА В "ПОДАЧЕ" (Tп) | J8: TEPLOTA NA PŘÍVOD. VĚTVI (Tp ) | K8: Temp. di andata(Tf) | L8: Előremenő hőmérséklet | M8: TEMP. POL. (Tpolaza) | N8: Temperatura zasilania Tz | O8: FREMLØBS TEMPERATUR ( Tf) | P8: TURLEDNINGSTEMPERATUR (Tf) | Q8: TILFÖRSELLEDNINGS TEMPERATUR (Tf)
A9: 8 | B9: RETURN TEMPERATURE (Tr) | C9: TEMPERATUR RÜCKLAUF (Tr) | D9: ВЪЗВРАТЕНА ТЕМПЕРАТУРА | E9: RETOUR TEMPERATUUR | F9: TEMPERATURE RETOUR | G9: TEMPERATURA RETUR | H9: DÖNÜŞ SICAKLIĞI [°C] Td | I9: ТЕМПЕРАТУРА В "ОБРАТКЕ" (То) | J9: TEPLOTA NA VRATNÉ VĚTVI (Tv) | K9: Temp. di ritorno(Tr) | L9: Visszatérő hőmérséklet | M9: TEMP. POV. (T povrata) | N9: Temperatura powrotu Tp | O9: RETUR TEMPERATUR (Tr) | P9: RETUR TEMPERATUR (Tr) | Q9: RETURLEDNINGS TEMPERATUR (Tr)
A10: 9 | B10: TEMP. DIFFERENCE (Tf - Tr) | C10: TEMP. SPREIZUNG (Tf - Tr) | D10: ТЕРМОРАЗЛИКА (захр./връщ.) | E10: TEMPERATUUR VERSCHIL | F10: DELTA T (Td-Tr) | G10: DIFERENTA TEMPERATURA | H10: SICAKLIK FARKI (Tg - Td) | I10: РАЗНИЦА ТЕМПЕРАТУР (Tп - Tо) | J10: TEPLOTNÍ SPÁD (Tp-Tv) | K10: Differenza di Temp.(Tf-Tr) | L10: Hőmérsékletkülönbség | M10: Δ T (Tpolaza - Tpovrata) | N10: Różnica temperatur (Tz-Tp) | O10: TEMP. FORSKEL (Tf - Tr) | P10: TEMP. FORSKJELL (Tf - Tr) | Q10: TEMP. SKILLNAD (Tf - Tr)
A11: 10 | B11: TRENCH LENGTH | C11: TRASSENLÄNGE | D11: ДЪЛЖИНА НА ТРАСЕТО | E11: TRACEE LENGTE | F11: L.TRANCHEE(m) | G11: LUNGIME SANT | H11: TRANŞE(KANAL) UZUNLUĞU | I11: ДЛИНА ТРАНШЕИ | J11: DÉLKA TRASY | K11: Lunghezza dello scavo | L11: Nyomvonal hossza | M11: DUŽINA TRASE | N11: Długość wykopu | O11: TRACE LÆNGDE | P11: TRACE LENGDE | Q11: SPÅRLÄNGD
A12: 11 | B12: HEAT LOAD kW SOURCE | C12: LEISTUNG kW QUELLE | D12: ПОДАВАНА МОЩНОСТ | E12: OVER TE BRENGEN VERMOGEN kW | F12: PUISSANCE DEPART | G12: PUTERE SURSA kW | H12: ISI KAYNAĞI YÜKÜ ( KW ) | I12: ТЕПЛОВАЯ НАГРУЗКА, кВт | J12: VÝKON ZDROJE (kW) | K12: Calore necessario in KW | L12: Forrásoldali teljesítmény kW | M12: SNAGA IZVORA kW | N12: Obciążenie cieplne kW | O12: VARMEBEHOV Kw BELASTNING | P12: TRENGER ANTAL Kw VARME BELASTNING | Q12: VÄRMA BEHOV Kw BELASTNING
A13: 12 | B13: VOLUMETRIC FLOW RATE | C13: MEDIUMMENGE | D13: ДЕБИТ | E13: VOLUMESTROOM | F13: DEBIT | G13: DEBIT VOLUMETRIC | H13: HACİMSEL DEBİ | I13: ОБЪЕМНЫЙ РАСХОД | J13: OBJEMOVÝ PRŮTOK | K13: Portata | L13: Térfogatáram | M13: VOLUMETRIČKA KOLIČINA MEDIJA | N13: Natężenie przepływu | O13: VOLUME GENNEMSTRØMNING | P13: VOLUMSTRØM | Q13: FLÖDE
A14: 13 | B14: PIPE LENGTH | C14: ROHRLÄNGE | D14: ДЪЛЖИНА НА ТРЪБИТЕ | E14: BUIS LENGTE | F14: L.TUBES (m) | G14: LUNGIME CONDUCTA | H14: BORU UZUNLUĞU | I14: ДЛИНА ТРУБ | J14: CELKOVÁ DÉLKA POTRUBÍ | K14: Lunghezza del tubo | L14: Vezeték hossza | M14: DUŽINA CIJEVI | N14: Długość rury | O14: RØR LÆNGDE | P14: RØRLENGDE | Q14: RÖRLÄNGD
A15: 14 | B15: OD (DIMENSION) | C15: DA (DIMENSION) | D15: DA (външен диаметър на тръбата) | E15: BUITEN DIAMETER | F15: DIAMETRE EXT. | G15: DE(DIMENSIUNE) | H15: BORU DIŞ ÇAPI ÖLÇÜSÜ | I15: Dнар. НАРУЖНЫЙ ДИАМЕТР | J15: DA (DIMENZE) | K15: DE(dimensione) | L15: Dk (külső átmérő) | M15: DA ( DIMENZIJA ) | N15: Średnica rury Dz | O15: UDV.(DIMENSION) | P15: UDV.(DIMENSION) | Q15: UDV.(DIMENSION)
A16: 15 | B16: VELOCITY | C16: FLIESSGESCHWINDIGKEIT | D16: СКОРОСТ НА ПОТОКА | E16: SNELHEID | F16: VITESSE | G16: VITEZA | H16: HIZ | I16: СКОРОСТЬ ПОТОКА | J16: RYCHLOST PROUDĚNÍ | K16: Velocità del fluido | L16: Áramlási sebesség | M16: BRZINA STRUJANJA | N16: Prędkość przepływu | O16: HASTIGHED | P16: FART | Q16: HASTIGHET
A17: 16 | B17: PRESSURE DROP FLOW | C17: DRUCKVERLUST VORLAUF | D17: ЗАГУБА НАЛЯГАНЕ / ПОДАВАНЕ | E17: DRUKVERLIES AANVOER | F17: PERTES CH. DEPART | G17: PIERDERE PRESIUNE TUR | H17: GİDİŞ HATTI BASINÇ KAYBI | I17: ПОТЕРЯ ДАВЛЕНИЯ В "ПОДАЧЕ" | J17: TLAK. ZTRÁTA NA PŘÍV. VĚTVI | K17: Pressione di andata | L17: Nyomásveszteség előre | M17: PAD TLAKA U POLAZU | N17: Spadek ciśnienia na zasilaniu | O17: TRYKTAB FREMLØB | P17: TRYKKTAP TUR | Q17: TRYCKFALL TILFÖRSELLEDNING
A18: 17 | B18: PRESSURE DROP RETURN | C18: DRUCKVERLUST RÜCKLAUF | D18: ЗАГУБА НАЛЯГАНЕ / ВРЪЩАНЕ | E18: DRUKVERLIES RETOUR | F18: PERTES CH. RETOUR | G18: PIERDERE PRESIUNE RETUR | H18: DÖNÜŞ HATI BASINÇ KAYBI | I18: ПОТЕРЯ ДАВЛЕНИЯ В "ОБРАТКЕ" | J18: TLAK. ZTRÁTA NA VRAT.VĚTVI | K18: Pressione di ritorno | L18: Nyomásveszteség vissza | M18: PAD TLAKA U POVRATU | N18: Spadek ciśnienia na powrocie | O18: TRYKTAB RETUR | P18: TRYKKTAP RETUR | Q18: TRYCKFALL RETURLEDNING
A19: 18 | B19: PRESSURE DROP TOTAL | C19: DRUCKVERLUST GESAMT | D19: ЗАГУБА НАЛЯГАНЕ ОБЩО | E19: DRUKVERLIES TOTAAL | F19: PERTES CH. TOTALES | G19: PIERDERE TOTALA PRESIUNE | H19: TOPLAM BASINÇ KAYBI | I19: ОБЩИЕ ПОТЕРИ ДАВЛЕНИЯ | J19: TLAKOVÁ ZTRÁTA CELKEM | K19: Pressione totale | L19: Nyomásveszteség összesen | M19: UKUPAN PAD TLAKA | N19: Całkowity spadek ciśnienia | O19: TRYKTAB TOTAL | P19: TRYKKTAP TOTAL | Q19: TRYCKFALL TOTAL
A20: 19 | B20: SUPPLY LINE (SINGLE LINE) | C20: SANITÄR (EINROHRSYSTEM) | D20: САНИТАРИЯ / БГВ | E20: AANVOERLEIDING | F20: LIGNE SIMPLE | G20: CIRCUIT ALIMENTARE (ACM) | H20: BESLEME HATTI ( TEK HAT ) | I20: ВОДОСНАБЖЕНИЕ (ОДНОТРУБНАЯ СИСТЕМА) | J20: TEPLÁ VODA(Jednotrubní vedení) | K20: Linea di adduzzione(singola) | L20: Ellátó hálózat (egyvezetékes csőrendszer) | M20: SANITARNA VODA | N20: Przewód zasilający ( pojedyncza rura) | O20: FREMLØB (ENKELT RØR) | P20: TURLEDNING (ENKELT RØR) | Q20: TILFÖRSELLEDNING (ENDA RÖR)
A21: 20 | B21: HEATING / COOLING (F / R) | C21: HEIZUNG / KÜHLUNG (VL / RL) | D21: ОТОПЛЕНИЕ | E21: VERWARMING / KOELING | F21: ALLER+RETOUR | G21: INCALZIRE/RACIRE(TUR-RETUR) | H21: ISITMA / SOĞUTMA | I21: ОТОПЛЕНИЕ (ДВУХТРУБНАЯ СИСТЕМА) | J21: TOPENÍ/CHLAZENÍ(P/V) | K21: Riscaldamento/Condizionamento(...) | L21: Fűtés / Hűtés | M21: GRIJANJE/HLAĐENJE | N21: Rura podwójna ( zasilanie - powrót ) | O21: VARME / KØLING (F/R) | P21: VARME / KJØLING (T/R) | Q21: VARME / KYLA (T/ R)
A22: 21 | B22: USABLE TEMP. DIFF. | C22: NUTZSPREIZUNG | D22: ТЕРМОРАЗЛИКА | E22: NUTTIG TEMPERATUURVERSCHIL | F22: DELTA T UTILE | G22: DIFERENTA TEMPERATURA UTILA | H22: KULLANILIR SICAKLIK FARKI | I22: РАЗНИЦА ТЕМПЕРАТУР В ТОЧКЕ2 | J22: POUŽITELNÝ TEPELNÝ SPÁD | K22: Differenza di Temp. utile | L22: Felhasználható hőmérséklet külömbség | M22: ISKORISTIVA TEMP. RAZLIKA | N22: Obliczeniowa różnica temperatur | O22: ANVENDELIG TEMP. FORSKEL | P22: AKTUEL TEMPERATUR FORSKEL | Q22: GÄLLANDE TEMP. SKILLNAD
A23: 22 | B23: USABLE LOAD | C23: NUTZLAST | D23: ПОЛЕЗЕН ТОВАР | E23: NUTTIG VERMOGEN | F23: PUISS UTILE | G23: PUTERE UTILA | H23: KULLANILIR ISI YÜKÜ | I23: ДОСТАВЛЕННОЕ ТЕПЛО В ТОЧКЕ2 | J23: POUŽITELNÉ ZATÍŽENÍ | K23: Carico utile | L23: Felshasználható terhelés | M23: ISKORISTIVA SNAGA | N23: Obliczeniowe obciążenie cieplne | O23: ANVENDELIG BELASTNING | P23: AKTUEL BELASTNING | Q23: AKTUELLA BELASTNINGEN
A24: 23 | B24: NET VOLUME | C24: NETZVOLUMEN | D24: ОБЕМ НА СИСТЕМАТА | E24: NETTO VOLUME | F24: VOL. RESEAU | G24: VOLUM NET | H24: NET HACİM | I24: ОБЪЕМ СИСТЕМЫ | J24: OBSAH SÍTĚ | K24: Volume netto | L24: Hálozat volumene | M24: VOLUMEN CJEVOVODA | N24: Pojemność sieci | O24: NET VOLUME | P24: NET VOLUME | Q24: NET VOLUME
A25: 24 | B25: SOURCE | C25: QUELLE | D25: ИЗТОЧНИК | E25: BRON | F25: DEPART | G25: SURSA | H25: KAYNAK | I25: ИСТОЧНИК (1) | J25: ZDROJ | K25: Sorgente | L25: Forrás teljesítmeny kW | M25: IZVOR | N25: Źródło ciepła | O25: KILDE | P25: KILDE | Q25: KILDE
A26: 25 | B26: TEMP. DIFF. | C26: SPREIZUNG | D26: ТЕРМОРАЗЛИКА | E26: TEMPERATUUR VERSCHIL | F26: DELTA T | G26: DIFERENTA TEMPERATURA | H26: SICAKLIK FARKI | I26: РАЗНИЦА ТЕМПЕРАТУР | J26: TEPLOTNÍ SPÁD | K26: Differenza di Temp. | L26: Hőmérsékletkülönbség | M26: TEMPERATURNA RAZLIKA | N26: Różnica temperatury | O26: TEMP. FORSKEL | P26: TEMP. FORSKJELL | Q26: TEMP. SKILLNAD
A27: 26 | B27: NO | C27: OHNE | D27: няма | E27: NEE | F27: 0 K | G27: NU | H27: HAYIR | I27: НЕТ | J27: ----- | K27: No | L27: nem, nincs | M27: BEZ | N27: --------- | O27: NEJ | P27: NEI | Q27: NEJ
A28: 27 | B28: PUMP | C28: PUMPE | D28: ПОМПА | E28: POMP | F28: POMPE | G28: POMPA | H28: POMPA | I28: НАСОС | J28: ČERPADLO | K28: Pompa | L28: Szivattyú | M28: PUMPA | N28: Pompa | O28: PUMPE | P28: PUMP | Q28: PUMP
A29: 28 | B29: RESERVE PRESSURE FOR PUMP | C29: VORDRUCK FÜR PUMPENAUSLEGUNG | D29: ПРЕДПИСАНИЕ ЗА ИЗБОР НА ПОМПА | E29: DRUKRESERVE VOOR POMP | F29: PERTES CH. ADDITIONNELLES | G29: REZERVA PRESIUNE POMPA | H29: POMPA YEDEK BASINCI | I29: ПОТЕРИ ДАВЛЕНИЯ ВО "ВНУТРЯНКЕ" | J29: TLAK PŘÍDAVNÉHO ČERPADLA | K29: Press. di riserva per la pompa | L29: A szivattú nyomástartaléka | M29: TLAČNA REZERVA PUMPE | N29: Rezerwowe ciśnienie pompy | O29: TILDELT TRYK TIL PUMPE | P29: RESERVERT TRYKK TIL PUMPE | Q29: FORBEHÅLLEN TRYCK FÖR PUMP
A30: 29 | B30: Temperature °C | C30: Temperatur °C | D30: Температура °C | E30: Temperatuur °C | F30: Température °C | G30: Temperatura °C | H30: Sıcaklık °C | I30: Температура °C | J30: Teplota° C | K30: Temp. in °C | L30: Hőmérséklet °C | M30: Temperatura °C | N30: Temperatura °C | O30: Temperatur °C | P30: Temperatur °C | Q30: Temperatur °C
A31: 30 | B31: Pressure loss bar | C31: Druckverlust bar | D31: Загуба на налягане bar | E31: Drukverlies (bar) | F31: Pertes ch. Lin. | G31: Pierdere presiune bar | H31: Basınç kaybı [bar] | I31: Потери давления bar | J31: Tlaková ztráta bar | K31: Perdita di pressione in bar | L31: Nyomásveszteség bar | M31: Pad tlaka bar | N31: Strata ciśnienia, bar | O31: Tryktab i bar | P31: Trykktap i bar | Q31: Tryckfall i bar
A32: 31 | B32: Dimension OD | C32: Dimension DA | D32: Размер на тръбата DA | E32: Buitendiameter | F32: Diamètre Ext | G32: Diametru exterior | H32: Boyut ( DIŞ ÇAP) | I32: ДИАМЕТР Dнар. | J32: Dimenze (DA) | K32: Diamentro | L32: Dk (külső átmérő) | M32: DA ( DIMENZIJA ) | N32: Średnica Dz | O32: Udv. Dimension | P32: Udv. Dimension | Q32: Udv. Dimension
A33: 32 | B33: END POINT | C33: END - PUNKT | D33: ПОЛЕЗЕН ТОВАР | E33: EINDPUNT | F33: DESTINATION | G33: PUNCT FINAL | H33: SON NOKTA | I33: КОНЕЧНАЯ ТОЧКА (2) | J33: KONEČNÝ BOD | K33: Fine linea | L33: Végpont | M33: Završna točka | N33: Odbiorca | O33: ENDE PUNKT | P33: ENDE PUNKT | Q33: ENDPOINT
A34: 33 | B34: FLOW | C34: VORLAUF | D34: ПОДАВАНЕ | E34: AANVOER | F34: DEPART | G34: TUR | H34: GİDİŞ HATTI | I34: "ПОДАЧА" | J34: PŘÍVODNÍ VĚTEV | K34: Portata | L34: Előre | M34: POLAZ | N34: Zasilanie | O34: FREMLØB | P34: TUR | Q34: TILFÖRSELLEDNING
A35: 34 | B35: RETURN | C35: RÜCKLAUF | D35: ВРЪЩАНЕ | E35: RETOUR | F35: RETOUR | G35: RETUR | H35: DÖNÜŞ HATTI | I35: "ОБРАТКА" | J35: VRATNÁ VĚTEV | K35: Ritorno | L35: Vissza | M35: POVRAT | N35: Powrót | O35: RETUR | P35: RETUR | Q35: RETURLEDNING
A36: 35 | B36: Not Appliable | C36: Entfällt | D36: НЯМА | E36: N.V.T. | F36: Inapplicable | G36: Neaplicabil | H36: Uygulanamaz | I36: не применяемо | J36: Nezadáno | K36: Non applicabile | L36: Nem meghatározott | M36: nije primjenjivo | N36: Nie Odpowiedni | O36: ikke anvendelig | P36: ikke anvendelig | Q36: inta användbar
A37: 36 | B37: Soil temperature | C37: Erdtemperatur | D37: температура земя | E37: Bodem temperatuur | F37: Température Sol | G37: Temperatura sol | H37: Toprak (zemin) sıcaklığı | I37: Температура почвы | J37: Teplota zeminy | K37: Temp. del terreno | L37: Talajhőmérséklet | M37: Temperatura tla | N37: Temperatura gruntu | O37: temperatur i jorden | P37: temperaturen i jorden | Q37: temperaturen i marken
A38: 37 | B38: Coverage | C38: Überdeckung | D38: дълб. на полагане | E38: gronddekking | F38: Recouvrement | G38: Adancime sant | H38: Dolgu yuksekligi | I38: Глубина заложения | J38: Výška krytí | K38: Copertura | L38: Átfedés | M38: Pokrov | N38: Głębokość wykopu | O38: jorddækning | P38: jorddækning | Q38: återfyllning
A39: 38 | B39: Lambda soil | C39: Lambda Erde | D39: Lambda земя | E39: Lambda bodem | F39: Lambda Sol | G39: Lambda Sol | H39: Toprak (zemin) ısı iletkenlik katsayısı | I39: λ почвы | J39: Lambda zeminy | K39: Lambda del terreno | L39: Talaj hővezetési tényező Lambda | M39: Lambda tla | N39: Lambda gruntu | O39: lambda jord | P39: lambda jord | Q39: lambda i marken
A40: 39 | B40: Temperature drop Flow | C40: Temperaturabfall VORLAUF | D40: Темп.загуба ПОДАВАНЕ | E40: Temperatuurverlies Aanvoer | F40: Chute temp. ligne départ | G40: Pierdere temperatura tur | H40: Sicaklik kaybi | I40: Потери темп. в "подаче" | J40: Teplotní ztráta - přívod. | K40: Temp. di rugiada | L40: Hömérsékletcsökkenés előre | M40: Pad temperature u polazu | N40: Spadek temperatury na zasilaniu | O40: Temperaturfald fremløb | P40: Temperaturfall turledning | Q40: Temperaturfall flöde
A41: 40 | B41: Trench Length | C41: Trassenlänge | D41: Дължина на ТРАСЕТО | E41: Tracee Lengte | F41: Long.Tranch.m | G41: Lungime sant | H41: Tranşe (kanal) uzunluğu | I41: Длина траншеи | J41: Délka trasy | K41: Lunghezza dello scavo | L41: Nyomvonal hossza | M41: Dužina trase | N41: Długość wykopu | O41: Trace længde | P41: Trace lengde | Q41: Spårlängd
A42: 41 | B42: Dwell time Flow | C42: Verweildauer VORLAUF | D42: Времетраене на ПОТОКА | E42: Verblijfstijd Stroming | F42: Durée Ecoulement | G42: DURATA PARCURS TUR | H42: Akış süresi | I42: Время подачи | J42: Prodleva - přívodní větev | K42: Tempo di riempimento | L42: Tartózkodási idő előre | M42: Vrijeme protoka u polazu | N42: Czas przepływu | O42: Gennemløbstid | P42: Gennemløbstid | Q42: genomströmnings tid
A43: 42 | B43: Pressure rating | C43: Druckreihe | D43: Налягане | E43: Drukklasse | F43: Press. Service | G43: PRESIUNEA REGIM | H43: Basınç değeri | I43: Номинал. давление | J43: Tlaková řada | K43: Pressione d'esercizio | L43: Nyomásgörbe (vezeték jelleggörbe) | M43: Tlačni red | N43: Ciśnienie odniesienia | O43: Trykforhold | P43: trykkforhold | Q43: tryckförhållande
A44: 43 | B44: Max. Pressure | C44: Maximaldruck | D44: Max налягане | E44: Maximum druk | F44: Press. Max. | G44: Presiune Max. | H44: Max.Basınç | I44: Max. давление | J44: Maximální tlak | K44: Pressione massima | L44: Maximális nyomás | M44: Maksimalni tlak | N44: Max. ciśnienie | O44: Max. Tryk | P44: Max. Trykk | Q44: Max.Tryck
A45: 44 | B45: Pressure drop | C45: Druckverlust | D45: загуба налягане | E45: Drukval | F45: Pertes Chges. | G45: Cadere Presiune | H45: Basınç kaybı bar | I45: Потери давления | J45: Tlaková ztráta | K45: Perdita di carico | L45: Nyomásveszteség | M45: Pad tlaka | N45: Spadek ciśnienia | O45: Tryktab | P45: Trykktap | Q45: Tryckfall
A46: 45 | B46: Reserve press. | C46: Druckreserve | D46: резерв налягане | E46: Drukreserve | F46: Réserve Press. | G46: Rezerva presiune | H46: rezerv basinc | I46: Резерв давления | J46: Tlaková rezerva | K46: Pressione residua | L46: Nyomástartalék | M46: Tlačna rezerva | N46: Rezerwa ciśnienia | O46: Tryk reserve | P46: Trykk reserve | Q46: Tryckreserv
A47: 46 | B47: at 95°C | C47: bei 95°C | D47: при 95°C | E47: bij 95°C | F47: à 95°C | G47: la 95°C | H47: 95°C de | I47: при 95°C | J47: při 95°C | K47: a 95°C | L47: 95°C - Mellett | M47: pri 95° C | N47: przy 95 °C | O47: ved 95 °C | P47: ved 95 °C | Q47: vid 95 °C
A48: 47 | B48: at Service Temperature | C48: bei Anwendungstemperatur | D48: при прилаганата темпер. | E48: bij bedrijfstemperatuur | F48: à Température de Service | G48: la Temperatura de lucru | H48: İşletme sıcaklığında | I48: при рабочей температуре | J48: při provozní teplotě | K48: alla Temp. di esercizio | L48: Felhasználási hőmérséklet mellett | M48: PRI RADNOJ TEMPERATURI | N48: Przy temperaturze roboczej | O48: ved anvendelses temperatur | P48: ved brukt temperatur | Q48: med användning av temperatur
A49: 48 | B49: FLEXALEN pipes only | C49: im FLEXALEN Rohr | D49: в тръбите | E49: FLEXALEN leidingen | F49: Rés. FLEXALEN seul | G49: Conducte Flexalen | H49: Sadece FLEXALEN borular | I49: Только в трубах Flexalen | J49: Pouze pro potr.FLEXALEN | K49: delle tubazioni Flexalen | L49: Flexalen csőben | M49: samo za FLEXALEN cijevi | N49: Tylko dla rur Flexalen | O49: Kun for FLEXALEN rør | P49: Kun for FLEXALEN rør | Q49: Endast FLEXALEN rören
A50: 49 | B50: at Service Temperature | C50: bei Anwendungstemperatur | D50: при прилаганата темпер. | E50: BIJ BEDR TEMP | F50: à Température de Service | G50: la Temperatura de lucru | H50: İşletme sıcaklığında | I50: при рабочей температуре | J50: při provozní teplotě | K50: alla Temp. di esercizio | L50: Felhasználási hőmérséklet mellett | M50: pri radnoj temperaturi | N50: Przy temperaturze roboczej | O50: ved anvendelses temperatur | P50: ved brukt temperatur | Q50: vid den föreskrivna temperaturen
A51: 50 | B51: PLEASE CHOOSE APPLICATION: | C51: BITTE ANWENDUNG WÄHLEN: | D51: МОЛЯ ИЗБЕРЕТЕ ПРИЛОЖЕНИЕТО: | E51: SELECTEER TOEPASSING: | F51: CHOIX DE L'APPLICATION | G51: VA RUGAM ALEGETI APLICATIA | H51: LÜTFEN UYGULAMAYI SEÇİN: | I51: ВЫБЕРИТЕ СИСТЕМУ: | J51: PROSÍM VYPLŇTE UŽITÍ: | K51: Prego scegliere l'applicazione | L51: Felhasználási terület kiválasztása | M51: MOLIMO ODABERITE NAMJENU: | N51: Proszę wybrać zastosowanie | O51: VÆLG ANVENDELSE | P51: VÆLG BRUK | Q51: VÄLJ APPLIKATION
A52: 51 | B52: SUPPLY LINE → | C52: SANITÄR → | D52: САНИТАРИЯ / БГВ → | E52: TOEVOERLEIDING → | F52: LIGNE SIMPLE → | G52: CIRCUIT A.C.M → | H52: BESLEME HATTI ( TEK HAT ) → | I52: ВОДОСНАБЖЕНИЕ → | J52: TEPLÁ VODA → | K52: Linea di alimentazione | L52: Ellátó hálózat | M52: SANITARNA VODA → | N52: Rura pojedyncza → | O52: BRUGSVAND → | P52: VANN → | Q52: VATTEN →
A53: 52 | B53: HEATING / COOLING → | C53: HEIZUNG / KÜHLUNG → | D53: ОТОПЛЕНИЕ → | E53: VERWARMING / KOELING → | F53: A/R CHAUF/EAU.GL → | G53: INCALZIRE/RACIRE → | H53: ISITMA / SOĞUTMA → | I53: ОТОПЛЕНИЕ → | J53: TOPENÍ/CHLAZENÍ → | K53: Riscaldamento/Condizionamento(...) | L53: Fűtés / Hűtés | M53: GRIJANJE / HLAĐENJE → | N53: Rura podwójna → | O53: VARME/KØLING → | P53: VARME/KJØLING → | Q53: VÄRME / KYLA →
A54: 53 | B54: Single pipe system: | F54: Ligne Simple | G54: SISTEM CONDUCTA SIMPLA | H54: Tek Borulu Sistemler: | I54: Обнотрубная система: | J54: Jednotrubní systém: | K54: Sistema di tubazioni singole | L54: Egyvezetékes csőrendszer | M54: Jednocjevni sustav: | N54: System pojedynczych rur | O54: Enkelt rør system: | P54: Enkelt rør system: | Q54: Singel rör System:
A55: 54 | B55: TEMPERATURE | C55: TEMPERATUR | D55: Въведи температура в °C: | E55: VUL DE TEMPERATUUR IN VAN HET MEDIUM | F55: TEMPERATURE | G55: TEMPERATURA | H55: SICAKLIK | I55: ТЕМПЕРАТУРА [°C] | J55: TEPLOTA | K55: Temp. | L55: Hőmérséklet | M55: TEMPERATURA | N55: Temperatura | O55: TEMPERATUR | P55: TEMPERATUR | Q55: TEMPERATUR
A56: 55 | B56: FILL IN TRENCH LENGTH | C56: TRASSENLÄNGE | D56: Въведи дължина на трасето в м: | E56: VUL DE LENGTE VAN HET TRACEE IN | F56: LONGUEUR DE TRANCHÉE | G56: LUNGIME SANT | H56: TRANŞE(KANAL) UZUNLUĞUNU GİR | I56: ВВЕДИТЕ ДЛИНУ ТРАНШЕИ в [м] | J56: ZADEJTE DÉLKU TRASY | K56: Lunghezza dello scavo | L56: Vezeték hossza (Kitölti a nyomvonal hosszat) | M56: U DUŽINI TRASE | N56: Wypełnienie długość wykopu | O56: UDFYLD TRACE LÆNGDE | P56: FYLL TRACE LENGDE | Q56: VÄLJ SPÅRLÄNGD
A57: 56 | B57: QUANTITY OF LIQUID | C57: MEDIUMMENGE | D57: Въведи дебит в л/сек: | E57: HOEVEELHEID VLOEISTOF | F57: DEBIT | G57: DEBIT | H57: AKIŞKANIN DEBİSİ | I57: РАСХОД [литров/сек] | J57: MNOŽSTVÍ MEDIA | K57: Portata | L57: (Folyadék mennyiség) Közegmennyiség | M57: KOLIČINA MEDIJA | N57: Natężenie przepływu | O57: MÆNGDE AF VÆSKE | P57: VÆDSKEMENGDE | Q57: MÄNGDEN AV LIQUID
A58: 57 | B58: ADDITIONAL PRESSURE FOR PUMP | C58: VORDRUCK für PUMPE | D58: Въведи налягане в крайна точка в bar: | E58: ADDITIONELE DRUK VOOR DE POMP | F58: Press. additionnelle à la pompe | G58: PRESIUNE SUPLIMENTARA POMPA | H58: POMPA İLAVE BASINCI | I58: ПОТЕРИ ДАВЛЕНИЯ ВО "ВНУТРЯНКЕ" [bar] | J58: PŘÍDAVNÝ TLAK ČERPADLA | K58: Press. aggiuntiva per la pompa | L58: A Csatlakazó rendszer nyomásesése | M58: PRETLAK PUMPE | N58: Dodatkowe ciśnienie pompy | O58: TILLAGT PUMPETRYK | P58: TILLDELT TIL PUMPETRYKK | Q58: FORBEHÅLLEN PUMPA TRYCK
A59: 58 | B59: Twin line system: | G59: Circuit dublu | H59: Çift Hatlı(gidiş-dönüş) Sistemler: | I59: Двухтрубная система: | J59: Dvoutrubní systém: | K59: Sistema di tubazioni doppie | L59: Többvezetékes csőrendszer | M59: Dvocjevni sustav: | N59: System podwójnych rur | O59: Dobbelt rørsystem: | P59: Dobbelt rørsystem: | Q59: Dubbel rörssystem :
A60: 59 | B60: FLOW TEMPERATURE | C60: TEMPERATUR VORLAUF | D60: Въведи температура на подаване в °C: | E60: VUL DE AANVOER TEMPERATUUR IN | F60: TEMPERATURE DEPART | G60: TEMPERATURA TUR | H60: GIDIS SICAKLIGI | I60: ТЕМПЕРАТУРА В ПОДАЮЩЕМ ТРУБОПРОВОДЕ | J60: TEPLOTA NA PŘÍVOD. VĚTVI | K60: Temp. del fluido | L60: Hőmérséklet előre | M60: TEMPERATURA POLAZA | N60: Temperatura zasilania | O60: FREMLØBS TEMPERATUR | P60: TURLEDNINGSTEMPERATUR | Q60: TILFÖRSELLEDNING TEMPERATUR
A61: 60 | B61: RETURN TEMPERATURE | C61: TEMPERATUR RÜCKLAUF | D61: Въведи възвратна температура в °C: | E61: VUL DE RETOUR TEMPERATUUR IN | F61: TEMPERATURE RETOUR | G61: TEMPERATURA RETUR | H61: DONUS SICAKLIGI | I61: ТЕМПЕРАТУРА В ОБРАТНОМ ТРУБОПРОВОДЕ | J61: TEPLOTA NA VRATNÉ VĚTVI | K61: Temp. del fluido di ritorno | L61: Hőmérséklet vissza | M61: TEMPERATURA POVRATA | N61: Temperatura powrotu | O61: RETUR TEMPERATUR | P61: RETUR LEDNINGSTEMPERATUR | Q61: RETUR LEDNINGSTEMPERATUR
A62: 61 | B62: TRENCH LENGTH | C62: TRASSENLÄNGE | D62: Въведи дължина на трасето в м: | E62: VUL DE LENGTE VAN HET TRACEE IN | F62: LONG.TRANCH. | G62: LUNGIME SANT | H62: TRANŞE(KANAL) UZUNLUĞU | I62: ДЛИНА ТРАНШЕИ [м] | J62: DÉLKA TRASY | K62: Lunghezza dello scavo | L62: Nyomvonal hossz | M62: DUŽINA TRASE | N62: Długość wykopu | O62: TRACE LÆNGDE | P62: TRACE LENGDE | Q62: SPÅRLÄNGD
A63: 62 | B63: HEAT LOAD | C63: ÜBERTRAGENE LEISTUNG ab HEIZHAUS | D63: Въведи мощност в крайна точка в kW: | E63: VUL HET TE TRANSPORTEREN VERMOGEN IN | F63: PUISSANCE | G63: SARCINA TERMICA | H63: ISI YÜKÜ | I63: ТЕПЛОВАЯ НАГРУЗКА [кВт] | J63: PŘENESENÝ VÝKON | K63: Perdita di calore | L63: Energia mennyiség kazánházból | M63: SNAGA PREUZETA OD KOTLOVNICE | N63: Obciążenie cieplne | O63: VARME BEHOV | P63: VARME BEHOV | Q63: VÄRMA BEHOV
A64: 63 | B64: ADDITIONAL PRESSURE FOR PUMP | C64: VORDRUCK für PUMPE | D64: Въведи налягане в крайна точка в bar: | E64: ADDITIONELE DRUK VOOR DE POMP | F64: PRESS. ADDITIONNELLE A LA POMPE | G64: PRESIUNE SUPLIMENTARA POMPA | H64: POMPA İLAVE BASINCI | I64: ПОТЕРИ ДАВЛЕНИЯ ВО "ВНУТРЯНКЕ" [bar] | J64: PŘÍDAVNÝ TLAK ČERPADLA | K64: Press. aggiuntiva per la pompa | L64: Szivattyú előnyomása | M64: PRETLAK PUMPE | N64: Dodatkowe ciśnienie pompy | O64: TILLAGT PUMPETRYK | P64: TILLDELT TIL PUMPETRYKK | Q64: FORBEHÅLLEN PUMPA TRYCK
A65: 64
A66: 65 | B66: °C | C66: °C | D66: °C | E66: °C | F66: °C | G66: °C | H66: °C | I66: °C | J66: °C | K66: °C | L66: °C | M66: °C | N66: °C | O66: °C | P66: °C | Q66: °C
A67: 66 | B67: m | C67: m | D67: m | E67: m | F67: m | G67: m | H67: m | I67: м | J67: m | K67: m | L67: m | M67: m | N67: m | O67: m | P67: m | Q67: m
A68: 67 | B68: l/s | C68: l/s | D68: l/s | E68: l/s | F68: l/s | G68: l/s | H68: lt/s | I68: l/s | J68: l/s | K68: l/s | L68: l/s | M68: l/s | N68: l/s | O68: l/s | P68: l/s | Q68: l/s
A69: 68 | B69: bar | C69: bar | D69: bar | E69: bar | F69: bar | G69: bar | H69: bar | I69: bar | J69: bar | K69: bar | L69: bar | M69: bar | N69: bar | O69: bar | P69: bar | Q69: bar
A70: 69
A71: 70 | B71: °C | C71: °C | D71: °C | E71: °C | F71: °C | G71: °C | H71: °C | I71: °C | J71: °C | K71: °C | L71: °C | M71: °C | N71: °C | O71: °C | P71: °C | Q71: °C
A72: 71 | B72: °C | C72: °C | D72: °C | E72: °C | F72: °C | G72: °C | H72: °C | I72: °C | J72: °C | K72: °C | L72: °C | M72: °C | N72: °C | O72: °C | P72: °C | Q72: °C
A73: 72 | B73: m | C73: m | D73: m | E73: m | F73: m | G73: m | H73: m | I73: м | J73: m | K73: m | L73: m | M73: m | N73: m | O73: m | P73: m | Q73: m
A74: 73 | B74: kW | C74: kW | D74: kW | E74: kW | F74: kW | G74: Kw | H74: KW | I74: кВт | J74: kW | K74: kW | L74: kW | M74: kW | N74: kW | O74: kW | P74: kW | Q74: kW
A75: 74 | B75: bar | C75: bar | D75: bar | E75: bar | F75: bar | G75: bar | H75: bar | I75: bar | J75: bar | K75: bar | L75: bar | M75: bar | N75: bar | O75: bar | P75: bar | Q75: bar
A76: 75 | B76: SELECT A FLEXALEN PRODUCT | C76: FLEXALEN PRODUKT WÄHLEN | D76: SELECT A FLEXALEN PRODUCT | E76: KIES EEN FLEXALEN PRODUKT | F76: Choisir un produit FLEXALEN | G76: SELECT A FLEXALEN PRODUCT | H76: SELECT A FLEXALEN PRODUCT | I76: ВЫБЕРИТЕ ТИП ТРУБЫ FLEXALEN | J76: SELECT A FLEXALEN PRODUCT | K76: SELECT A FLEXALEN PRODUCT | L76: SELECT A FLEXALEN PRODUCT | M76: ODABERITE FLEXALEN PROIZVOD | N76: Wybierz produkt Flexalen | O76: VÆLG ET FLEXALEN PRODUKT | P76: VELG FLEXALEN VARE | Q76: VÄLJ FLEXALEN PRODUKT
A77: 76 | B77: HEAT LOSS PER m' TRENCH LENGTH | C77: WÄRMEVERLUST PRO TRASSENMETER | D77: HEAT LOSS PER m' TRENCH LENGTH | E77: WARMTEVERLIES PER METER SLEUF | F77: Pertes de chaleur par mètre de tranchée | G77: HEAT LOSS PER m' TRENCH LENGTH | H77: HEAT LOSS PER m' TRENCH LENGTH | I77: ТЕПЛОВЫЕ ПОТЕРИ С 1 МЕТРА ТРАССЫ | J77: HEAT LOSS PER m' TRENCH LENGTH | K77: HEAT LOSS PER m' TRENCH LENGTH | L77: HEAT LOSS PER m' TRENCH LENGTH | M77: TOPLINSKI GUBITAK PO DUŽNOM METRU TRASE | N77: Strata ciepła na metr długości rury w wykopie | O77: VARMETAB PR. METER TRACE | P77: VARMETAP PER. METER TRACE | Q77: VÄRMEFÖLUST PER. METER SPÅRLÄNGD
A78: 77 | B78: Choose product | C78: Produkt wählen | D78: Choose product | E78: Kies produkt | G78: Choose product | H78: Choose product | I78: Выберите тип трубы | J78: Choose product | K78: Choose product | L78: Choose product | M78: ODABERITE PROIZVOD | N78: Wybierz produkt | O78: vælg produkt | P78: VELG VARE | Q78: VÄLJ PRODUKT
A79: 78 | B79: HEAT LOSS TOTAL | C79: WÄRMEABSTRAHLUNG NETZ | D79: HEAT LOSS TOTAL | E79: TOTAAL WARMTEVERLIES | F79: Pertes de chaleur totales | G79: HEAT LOSS TOTAL | H79: HEAT LOSS TOTAL | I79: ТЕПЛОВЫЕ ПОТЕРИ | J79: HEAT LOSS TOTAL | K79: HEAT LOSS TOTAL | L79: HEAT LOSS TOTAL | M79: TOPLINSKI GUBICI KUMULATIVNO | N79: Całkowita strata ciepła | O79: VARMETAB TOTAL | P79: VARMETAP TOTAL | Q79: VÄRMEFÖLUST TOTAL
A80: 79 | B80: FLEXALEN Product | C80: FLEXALEN Produkt | D80: FLEXALEN Product | E80: FLEXALEN Produkt | F80: FLEXALEN | G80: FLEXALEN Product | H80: FLEXALEN Product | I80: FLEXALEN продукт | J80: FLEXALEN Product | K80: FLEXALEN Product | L80: FLEXALEN Product | M80: FLEXALEN PROIZVOD | N80: Flexalen produktu | O80: FLEXALEN Produkt | P80: FLEXALEN Produkt | Q80: FLEXALEN PRODUKT
A81: 80 | B81: Quantity | C81: Menge | D81: Quantity | E81: Aantal | G81: Quantity | H81: Quantity | I81: количество | J81: Quantity | K81: Quantity | L81: Quantity | M81: KOLIČINA | N81: Ilość | O81: Mængde | P81: Mengde | Q81: mängd
A82: 81
A83: 82
A84: 83
A85: 84
A86: 85
A87: 86
A88: 87
A89: 88
A90: 89
A91: 90
A92: 91
A93: 92
A94: 93
A95: 94
A96: 95
A97: 96
A98: 97
A99: 98
A100: 99
A101: 100

Sheet Release Info (hidden)
B1: Flexalen QuickCalc
B2: Flexalen 600
A4: Version | B4: Date | C4: Changes
A5: v8.00 (beta) | B5: 2010-02-03 | C5: 1st multilingual language: english, german, bulgarian, dutch, Heatloss - temperature drop updated / new outlook,...
A6: v8.00 (beta) | B6: 2010-02-09 | C6: checked by several people and corrected
A7: v8.00 | B7: 2010-03-23 | C7: Sprachen OK: en, ger, ru, bul, dutch, turkish, romanian
A8: v8.01 | B8: 2010-06-04 | C8: Sprachen - Übersetzungsfehler behoben; v [m/s] Tabelle angefügt; Druckstufe neu für 16-110 und 125-225; Instruction en - aktualisiert
A9: v8.10 | B9: 2010-07-26 | C9: TF faktor angepasst von 1,03 auf 1,02 (nicht 1,011 wie beim großen, robusterer Wert)
C10: Alle Beschreibungen geändert auf Flexalen anstatt Flexalen 600
C11: alle Parameter aktualisiert
C12: CZ language added
A13: v8.11 | B13: 2010-10-14 | C13: Italian & hungarian language added
B14: 2010-10-20 | C14: corrections translation hungarian
B15: 2010-10-27 | C15: correction translation italien
A16: v8.12 | B16: 2011-03-07 | C16: croatian language added
A17: v9.00 | B17: 2011-06-20 | C17: Temperature drop calc completely new, Heat losses new, new spread sheet "Parameter_HL"
A18: v9.01 | B18: 2011-07-05 | C18: update languages, new polish language, some bug fixes
A19: v9.02 | B19: 2011-07-20 | C19: correct polish language, bug fix 75mm product choosing
A20: v10 | B20: 2020-05-14 | C20: new product codes and products, design makeover
A21: v10.1 | B21: 2021-02-05 | C21: language added: croatian, dansk
